Workbook

Sheet Personal Lines P&C
A1: Product Type | B1: Per Policy | C1: New and Renewal Premiums and Commissions
A3: PERSONAL LINES Products | B3: Avg Prem. ea. | C3: Year 1 | D3: Year 2 | E3: Year 3 | F3: Year 4 | G3: Year 5 | I3: 5 Year Cumm
A4: Auto
A5: Avg Annual Prem Per Unit | B5: 0
A6: Avg # Auto Units Per Month | C6: 0 | D6: 0 | E6: 0 | F6: 0 | G6: 0 | I6: =SUM(C6:G6)*12 -> 0
A7: Commission % | C7: =HLOOKUP(AgentType,'AAA-AAP Variables'!$P$1:$Q$86,2,FALSE) -> 0.1 | D7: =IF($C$7=HLOOKUP(AgentType,'AAA-AAP Variables'!$P$1:$Q$86,2,FALSE),HLOOKUP(AgentType,'AAA-AAP Variables'!$P$1:$Q$86,3,FALSE),$C$7) -> 0.1 | E7: =IF($C$7=HLOOKUP(AgentType,'AAA-AAP Variables'!$P$1:$Q$86,2,FALSE),HLOOKUP(AgentType,'AAA-AAP Variables'!$P$1:$Q$86,4,FALSE),$C$7) -> 0.1 | F7: =IF($C$7=HLOOKUP(AgentType,'AAA-AAP Variables'!$P$1:$Q$86,2,FALSE),HLOOKUP(AgentType,'AAA-AAP Variables'!$P$1:$Q$86,5,FALSE),$C$7) -> 0.1 | G7: =IF($C$7=HLOOKUP(AgentType,'AAA-AAP Variables'!$P$1:$Q$86,2,FALSE),HLOOKUP(AgentType,'AAA-AAP Variables'!$P$1:$Q$86,6,FALSE),$C$7) -> 0.1 | I7: =AVERAGE(C7:G7) -> 0.1
A8: Avg 1st Year Annual Persistency | C8: 0.9 | D8: =C8 -> 0.9 | E8: =C8 -> 0.9 | F8: =C8 -> 0.9 | G8: =C8 -> 0.9 | I8: =AVERAGE(C8:G8) -> 0.9
A9: Avg Renewal Annual Persistency | C9: 0.9 | D9: =C9 -> 0.9 | E9: =C9 -> 0.9 | F9: =C9 -> 0.9 | G9: =C9 -> 0.9 | I9: =AVERAGE(C9:G9) -> 0.9
A10: Total 1st Year Premium Collected | C10: =$B5*C6*12*C8 -> 0 | D10: =$B5*D6*12*D8 -> 0 | E10: 0 | F10: 0 | G10: 0 | I10: =SUM(C10:G10) -> 0
A11: Total Renewal Premium Collected | D11: =C10*D9 -> 0 | E11: =(D10+D11)*E9 -> 0 | F11: =(E10+E11)*F9 -> 0 | G11: =(F10+F11)*G9 -> 0 | I11: =SUM(C11:G11) -> 0
A12: Annual Commission Paid $ | C12: =C10*C7 -> 0 | D12: =D10*D7 -> 0 | E12: =E10*E7 -> 0 | F12: =F10*F7 -> 0 | G12: =G10*G7 -> 0 | I12: =SUM(C12:G12) -> 0
A13: Renewal Commission Paid $ | C13: 0 | D13: =D11*D7 -> 0 | E13: =E11*E7 -> 0 | F13: =F11*F7 -> 0 | G13: =G11*G7 -> 0 | I13: =SUM(C13:G13) -> 0
A15: Homeowners
A16: Avg Annual Prem Per Policy | B16: 0
A17: Avg # Homes Per Month | C17: 0 | D17: 0 | E17: 0 | F17: 0 | G17: 0 | I17: =SUM(C17:G17)*12 -> 0
A18: Commission % | C18: =HLOOKUP(AgentType,'AAA-AAP Variables'!$P$1:$Q$86,7,FALSE) -> 0.12 | D18: =IF($C$18=HLOOKUP(AgentType,'AAA-AAP Variables'!$P$1:$Q$86,7,FALSE),HLOOKUP(AgentType,'AAA-AAP Variables'!$P$1:$Q$86,8,FALSE),$C$18) -> 0.12 | E18: =IF($C$18=HLOOKUP(AgentType,'AAA-AAP Variables'!$P$1:$Q$86,7,FALSE),HLOOKUP(AgentType,'AAA-AAP Variables'!$P$1:$Q$86,9,FALSE),$C$18) -> 0.12 | F18: =IF($C$18=HLOOKUP(AgentType,'AAA-AAP Variables'!$P$1:$Q$86,7,FALSE),HLOOKUP(AgentType,'AAA-AAP Variables'!$P$1:$Q$86,10,FALSE),$C$18) -> 0.12 | G18: =IF($C$18=HLOOKUP(AgentType,'AAA-AAP Variables'!$P$1:$Q$86,7,FALSE),HLOOKUP(AgentType,'AAA-AAP Variables'!$P$1:$Q$86,11,FALSE),$C$18) -> 0.12 | I18: =AVERAGE(C18:G18) -> 0.12
A19: Avg 1st Year Annual Persistency | C19: 0.9 | D19: =C19 -> 0.9 | E19: =C19 -> 0.9 | F19: =C19 -> 0.9 | G19: =C19 -> 0.9 | I19: =AVERAGE(C19:G19) -> 0.9
A20: Avg Renewal Annual Persistency | C20: 0.9 | D20: =C20 -> 0.9 | E20: =C20 -> 0.9 | F20: =C20 -> 0.9 | G20: =C20 -> 0.9 | I20: =AVERAGE(C20:G20) -> 0.9
A21: Total 1st Year Premium Collected | C21: =$B16*C17*12*C19 -> 0 | D21: =$B16*D17*12*D19 -> 0 | E21: 0 | F21: 0 | G21: 0 | I21: =SUM(C21:G21) -> 0
A22: Total Renewal Premium Collected | D22: =C21*D20 -> 0 | E22: =(D21+D22)*E20 -> 0 | F22: =(E21+E22)*F20 -> 0 | G22: =(F21+F22)*G20 -> 0 | I22: =SUM(C22:G22) -> 0
A23: Annual Commission Paid $ | C23: =C21*C18 -> 0 | D23: =D21*D18 -> 0 | E23: =E21*E18 -> 0 | F23: =F21*F18 -> 0 | G23: =G21*G18 -> 0 | I23: =SUM(C23:G23) -> 0
A24: Renewal Commission Paid $ | C24: 0 | D24: =D22*D18 -> 0 | E24: =E22*E18 -> 0 | F24: =F22*F18 -> 0 | G24: =G22*G18 -> 0 | I24: =SUM(C24:G24) -> 0
A26: Umbrella
A27: Avg Annual Prem Per Policy | B27: 0
A28: Avg # Umbrella Policies Per Month | C28: 0 | D28: 0 | E28: 0 | F28: 0 | G28: 0 | I28: =SUM(C28:G28)*12 -> 0
A29: Commission % | C29: =HLOOKUP(AgentType,'AAA-AAP Variables'!$P$1:$Q$86,12,FALSE) -> 0.105 | D29: =IF($C$29=HLOOKUP(AgentType,'AAA-AAP Variables'!$P$1:$Q$86,12,FALSE),HLOOKUP(AgentType,'AAA-AAP Variables'!$P$1:$Q$86,13,FALSE),$C$29) -> 0.105 | E29: =IF($C$29=HLOOKUP(AgentType,'AAA-AAP Variables'!$P$1:$Q$86,12,FALSE),HLOOKUP(AgentType,'AAA-AAP Variables'!$P$1:$Q$86,14,FALSE),$C$29) -> 0.105 | F29: =IF($C$29=HLOOKUP(AgentType,'AAA-AAP Variables'!$P$1:$Q$86,12,FALSE),HLOOKUP(AgentType,'AAA-AAP Variables'!$P$1:$Q$86,15,FALSE),$C$29) -> 0.105 | G29: =IF($C$29=HLOOKUP(AgentType,'AAA-AAP Variables'!$P$1:$Q$86,12,FALSE),HLOOKUP(AgentType,'AAA-AAP Variables'!$P$1:$Q$86,16,FALSE),$C$29) -> 0.105 | I29: =AVERAGE(C29:G29) -> 0.105
A30: Avg 1st Year Annual Persistency | C30: 0.9 | D30: =C30 -> 0.9 | E30: =C30 -> 0.9 | F30: =C30 -> 0.9 | G30: =C30 -> 0.9 | I30: =AVERAGE(C30:G30) -> 0.9
A31: Avg Renewal Annual Persistency | C31: 0.9 | D31: =C31 -> 0.9 | E31: =C31 -> 0.9 | F31: =C31 -> 0.9 | G31: =C31 -> 0.9 | I31: =AVERAGE(C31:G31) -> 0.9
A32: Total 1st Year Premium Collected | C32: =$B27*C28*12*C30 -> 0 | D32: =$B27*D28*12*D30 -> 0 | E32: 0 | F32: 0 | G32: 0 | I32: =SUM(C32:G32) -> 0
A33: Total Renewal Premium Collected | D33: =C32*D31 -> 0 | E33: =(D32+D33)*E31 -> 0 | F33: =(E32+E33)*F31 -> 0 | G33: =(F32+F33)*G31 -> 0 | I33: =SUM(C33:G33) -> 0
A34: Annual Commission Paid $ | C34: =C32*C29 -> 0 | D34: =D32*D29 -> 0 | E34: =E32*E29 -> 0 | F34: =F32*F29 -> 0 | G34: =G32*G29 -> 0 | I34: =SUM(C34:G34) -> 0
A35: Renewal Commission Paid $ | C35: 0 | D35: =D33*D29 -> 0 | E35: =E33*E29 -> 0 | F35: =F33*F29 -> 0 | G35: =G33*G29 -> 0 | I35: =SUM(C35:G35) -> 0
A39: Total PERSONAL LINES PROPERTY and CASUALTY Premium | C39: =C10+C11+C21+C22+C32+C33 -> 0 | D39: =D10+D11+D21+D22+D32+D33 -> 0 | E39: 0 | F39: 0 | G39: 0 | I39: =SUM(C39:G39) -> 0
A41: Protection - "AGENCY"

Sheet Commercial Lines P&C
A1: Product Type | B1: Per Policy | C1: New and Renewal Premiums and Commissions
A2: COMMERCIAL LINES Products | B2: Avg Prem. ea. | C2: Year 1 | D2: Year 2 | E2: Year 3 | F2: Year 4 | G2: Year 5 | I2: 5 Year Cumm
A3: Business Owner Policy
A4: Avg Annual Prem Per Policy | B4: 0
A5: Avg # Policies Per Month | C5: 0 | D5: 0 | E5: 0 | F5: 0 | G5: 0 | I5: =SUM(C5:G5)*12 -> 0
A6: Commission % | C6: =HLOOKUP(AgentType,'AAA-AAP Variables'!$P$1:$Q$86,17,FALSE) -> 0.12 | D6: =IF($C$6=HLOOKUP(AgentType,'AAA-AAP Variables'!$P$1:$Q$86,17,FALSE),HLOOKUP(AgentType,'AAA-AAP Variables'!$P$1:$Q$86,18,FALSE),$C$6) -> 0.12 | E6: =IF($C$6=HLOOKUP(AgentType,'AAA-AAP Variables'!$P$1:$Q$86,17,FALSE),HLOOKUP(AgentType,'AAA-AAP Variables'!$P$1:$Q$86,19,FALSE),$C$6) -> 0.12 | F6: =IF($C$6=HLOOKUP(AgentType,'AAA-AAP Variables'!$P$1:$Q$86,17,FALSE),HLOOKUP(AgentType,'AAA-AAP Variables'!$P$1:$Q$86,20,FALSE),$C$6) -> 0.12 | G6: =IF($C$6=HLOOKUP(AgentType,'AAA-AAP Variables'!$P$1:$Q$86,17,FALSE),HLOOKUP(AgentType,'AAA-AAP Variables'!$P$1:$Q$86,21,FALSE),$C$6) -> 0.12 | I6: =AVERAGE(C6:G6) -> 0.12
A7: Avg 1st Year Annual Persistency | C7: 0.9 | D7: =C7 -> 0.9 | E7: =C7 -> 0.9 | F7: =C7 -> 0.9 | G7: =C7 -> 0.9 | I7: =AVERAGE(C7:G7) -> 0.9
A8: Avg Renewal Annual Persistency | C8: 0.9 | D8: =C8 -> 0.9 | E8: =C8 -> 0.9 | F8: =C8 -> 0.9 | G8: =C8 -> 0.9 | I8: =AVERAGE(C8:G8) -> 0.9
A9: Total 1st Year Premium Collected | C9: =$B4*C5*12*C7 -> 0 | D9: =$B4*D5*12*D7 -> 0 | E9: 0 | F9: 0 | G9: 0 | I9: =SUM(C9:G9) -> 0
A10: Total Renewal Premium Collected | D10: =C9*D8 -> 0 | E10: =(D9+D10)*E8 -> 0 | F10: =(E9+E10)*F8 -> 0 | G10: =(F9+F10)*G8 -> 0 | I10: =SUM(C10:G10) -> 0
A11: Annual Commission Paid $ | C11: =C9*C6 -> 0 | D11: =D9*D6 -> 0 | E11: =E9*E6 -> 0 | F11: =F9*F6 -> 0 | G11: =G9*G6 -> 0 | I11: =SUM(C11:G11) -> 0
A12: Renewal Commission Paid $ | C12: 0 | D12: =D10*D6 -> 0 | E12: =E10*E6 -> 0 | F12: =F10*F6 -> 0 | G12: =G10*G6 -> 0 | I12: =SUM(C12:G12) -> 0
A14: Business Auto
A15: Avg Annual Prem Per Auto | B15: 0
A16: Avg # Autos Per Month | C16: 0 | D16: 0 | E16: 0 | F16: 0 | G16: 0 | I16: =SUM(C16:G16)*12 -> 0
A17: Commission % | C17: =HLOOKUP(AgentType,'AAA-AAP Variables'!$P$1:$Q$86,22,FALSE) -> 0.1 | D17: =IF($C$17=HLOOKUP(AgentType,'AAA-AAP Variables'!$P$1:$Q$86,22,FALSE),HLOOKUP(AgentType,'AAA-AAP Variables'!$P$1:$Q$86,23,FALSE),$C$17) -> 0.1 | E17: =IF($C$17=HLOOKUP(AgentType,'AAA-AAP Variables'!$P$1:$Q$86,22,FALSE),HLOOKUP(AgentType,'AAA-AAP Variables'!$P$1:$Q$86,24,FALSE),$C$17) -> 0.1 | F17: =IF($C$17=HLOOKUP(AgentType,'AAA-AAP Variables'!$P$1:$Q$86,22,FALSE),HLOOKUP(AgentType,'AAA-AAP Variables'!$P$1:$Q$86,25,FALSE),$C$17) -> 0.1 | G17: =IF($C$17=HLOOKUP(AgentType,'AAA-AAP Variables'!$P$1:$Q$86,22,FALSE),HLOOKUP(AgentType,'AAA-AAP Variables'!$P$1:$Q$86,26,FALSE),$C$17) -> 0.1 | I17: =AVERAGE(C17:G17) -> 0.1
A18: Avg 1st Year Annual Persistency | C18: 0.9 | D18: =C18 -> 0.9 | E18: =C18 -> 0.9 | F18: =C18 -> 0.9 | G18: =C18 -> 0.9 | I18: =AVERAGE(C18:G18) -> 0.9
A19: Avg Renewal Annual Persistency | C19: 0.9 | D19: =C19 -> 0.9 | E19: =C19 -> 0.9 | F19: =C19 -> 0.9 | G19: =C19 -> 0.9 | I19: =AVERAGE(C19:G19) -> 0.9
A20: Total 1st Year Premium Collected | C20: =$B15*C16*12*C18 -> 0 | D20: =$B15*D16*12*D18 -> 0 | E20: 0 | F20: 0 | G20: 0 | I20: =SUM(C20:G20) -> 0
A21: Total Renewal Premium Collected | D21: =C20*D19 -> 0 | E21: =(D20+D21)*E19 -> 0 | F21: =(E20+E21)*F19 -> 0 | G21: =(F20+F21)*G19 -> 0 | I21: =SUM(C21:G21) -> 0
A22: Annual Commission Paid $ | C22: =C20*C17 -> 0 | D22: =D20*D17 -> 0 | E22: =E20*E17 -> 0 | F22: =F20*F17 -> 0 | G22: =G20*G17 -> 0 | I22: =SUM(C22:G22) -> 0
A23: Renewal Commission Paid $ | C23: 0 | D23: =D21*D17 -> 0 | E23: =E21*E17 -> 0 | F23: =F21*F17 -> 0 | G23: =G21*G17 -> 0 | I23: =SUM(C23:G23) -> 0
A25: Special Farm Package
A26: Avg Annual Prem Per Policy | B26: 0
A27: Avg # Policies Per Month | C27: 0 | D27: 0 | E27: 0 | F27: 0 | G27: 0 | I27: =SUM(C27:G27)*12 -> 0
A28: Commission % | C28: =HLOOKUP(AgentType,'AAA-AAP Variables'!$P$1:$Q$86,27,FALSE) -> 0.12 | D28: =IF($C$28=HLOOKUP(AgentType,'AAA-AAP Variables'!$P$1:$Q$86,27,FALSE),HLOOKUP(AgentType,'AAA-AAP Variables'!$P$1:$Q$86,28,FALSE),$C$28) -> 0.12 | E28: =IF($C$28=HLOOKUP(AgentType,'AAA-AAP Variables'!$P$1:$Q$86,27,FALSE),HLOOKUP(AgentType,'AAA-AAP Variables'!$P$1:$Q$86,29,FALSE),$C$28) -> 0.12 | F28: =IF($C$28=HLOOKUP(AgentType,'AAA-AAP Variables'!$P$1:$Q$86,27,FALSE),HLOOKUP(AgentType,'AAA-AAP Variables'!$P$1:$Q$86,30,FALSE),$C$28) -> 0.12 | G28: =IF($C$28=HLOOKUP(AgentType,'AAA-AAP Variables'!$P$1:$Q$86,27,FALSE),HLOOKUP(AgentType,'AAA-AAP Variables'!$P$1:$Q$86,31,FALSE),$C$28) -> 0.12 | I28: =AVERAGE(C28:G28) -> 0.12
A29: Avg 1st Year Annual Persistency | C29: 0.9 | D29: =C29 -> 0.9 | E29: =C29 -> 0.9 | F29: =C29 -> 0.9 | G29: =C29 -> 0.9 | I29: =AVERAGE(C29:G29) -> 0.9
A30: Avg Renewal Annual Persistency | C30: 0.9 | D30: =C30 -> 0.9 | E30: =C30 -> 0.9 | F30: =C30 -> 0.9 | G30: =C30 -> 0.9 | I30: =AVERAGE(C30:G30) -> 0.9
A31: Total 1st Year Premium Collected | C31: =$B26*C27*12*C29 -> 0 | D31: =$B26*D27*12*D29 -> 0 | E31: 0 | F31: 0 | G31: 0 | I31: =SUM(C31:G31) -> 0
A32: Total Renewal Premium Collected | D32: =C31*D30 -> 0 | E32: =(D31+D32)*E30 -> 0 | F32: =(E31+E32)*F30 -> 0 | G32: =(F31+F32)*G30 -> 0 | I32: =SUM(C32:G32) -> 0
A33: Annual Commission Paid $ | C33: =C31*C28 -> 0 | D33: =D31*D28 -> 0 | E33: =E31*E28 -> 0 | F33: =F31*F28 -> 0 | G33: =G31*G28 -> 0 | I33: =SUM(C33:G33) -> 0
A34: Renewal Commission Paid $ | C34: 0 | D34: =D32*D28 -> 0 | E34: =E32*E28 -> 0 | F34: =F32*F28 -> 0 | G34: =G32*G28 -> 0 | I34: =SUM(C34:G34) -> 0
A36: Workers Comp
A37: Avg Annual Prem Per Policy | B37: 0
A38: Avg # Policies Per Month | C38: 0 | D38: 0 | E38: 0 | F38: 0 | G38: 0 | I38: =SUM(C38:G38)*12 -> 0
A39: Commission % | C39: =HLOOKUP(AgentType,'AAA-AAP Variables'!$P$1:$Q$86,32,FALSE) -> 0.05 | D39: =IF($C$39=HLOOKUP(AgentType,'AAA-AAP Variables'!$P$1:$Q$86,32,FALSE),HLOOKUP(AgentType,'AAA-AAP Variables'!$P$1:$Q$86,33,FALSE),$C$39) -> 0.05 | E39: =IF($C$39=HLOOKUP(AgentType,'AAA-AAP Variables'!$P$1:$Q$86,32,FALSE),HLOOKUP(AgentType,'AAA-AAP Variables'!$P$1:$Q$86,34,FALSE),$C$39) -> 0.05 | F39: =IF($C$39=HLOOKUP(AgentType,'AAA-AAP Variables'!$P$1:$Q$86,32,FALSE),HLOOKUP(AgentType,'AAA-AAP Variables'!$P$1:$Q$86,35,FALSE),$C$39) -> 0.05 | G39: =IF($C$39=HLOOKUP(AgentType,'AAA-AAP Variables'!$P$1:$Q$86,32,FALSE),HLOOKUP(AgentType,'AAA-AAP Variables'!$P$1:$Q$86,36,FALSE),$C$39) -> 0.05 | I39: =AVERAGE(C39:G39) -> 0.05
A40: Avg 1st Year Annual Persistency | C40: 0.9 | D40: =C40 -> 0.9 | E40: =C40 -> 0.9 | F40: =C40 -> 0.9 | G40: =C40 -> 0.9 | I40: =AVERAGE(C40:G40) -> 0.9
A41: Avg Renewal Annual Persistency | C41: 0.9 | D41: =C41 -> 0.9 | E41: =C41 -> 0.9 | F41: =C41 -> 0.9 | G41: =C41 -> 0.9 | I41: =AVERAGE(C41:G41) -> 0.9
A42: Total 1st Year Premium Collected | C42: =$B37*C38*12*C40 -> 0 | D42: =$B37*D38*12*D40 -> 0 | E42: 0 | F42: 0 | G42: 0 | I42: =SUM(C42:G42) -> 0
A43: Total Renewal Premium Collected | D43: =C42*D41 -> 0 | E43: =(D42+D43)*E41 -> 0 | F43: =(E42+E43)*F41 -> 0 | G43: =(F42+F43)*G41 -> 0 | I43: =SUM(C43:G43) -> 0
A44: Annual Commission Paid $ | C44: =C42*C39 -> 0 | D44: =D42*D39 -> 0 | E44: =E42*E39 -> 0 | F44: =F42*F39 -> 0 | G44: =G42*G39 -> 0 | I44: =SUM(C44:G44) -> 0
A45: Renewal Commission Paid $ | C45: 0 | D45: =D43*D39 -> 0 | E45: =E43*E39 -> 0 | F45: =F43*F39 -> 0 | G45: =G43*G39 -> 0 | I45: =SUM(C45:G45) -> 0
A47: Commercial Package Policy
A48: Avg Annual Prem Per Policy | B48: 0
A49: Avg # Policies Per Month | C49: 0 | D49: 0 | E49: 0 | F49: 0 | G49: 0 | I49: =SUM(C49:G49)*12 -> 0
A50: Commission % | C50: =HLOOKUP(AgentType,'AAA-AAP Variables'!$P$1:$Q$86,37,FALSE) -> 0.12 | D50: =IF($C$50=HLOOKUP(AgentType,'AAA-AAP Variables'!$P$1:$Q$86,37,FALSE),HLOOKUP(AgentType,'AAA-AAP Variables'!$P$1:$Q$86,38,FALSE),$C$50) -> 0.12 | E50: =IF($C$50=HLOOKUP(AgentType,'AAA-AAP Variables'!$P$1:$Q$86,37,FALSE),HLOOKUP(AgentType,'AAA-AAP Variables'!$P$1:$Q$86,39,FALSE),$C$50) -> 0.12 | F50: =IF($C$50=HLOOKUP(AgentType,'AAA-AAP Variables'!$P$1:$Q$86,37,FALSE),HLOOKUP(AgentType,'AAA-AAP Variables'!$P$1:$Q$86,40,FALSE),$C$50) -> 0.12 | G50: =IF($C$50=HLOOKUP(AgentType,'AAA-AAP Variables'!$P$1:$Q$86,37,FALSE),HLOOKUP(AgentType,'AAA-AAP Variables'!$P$1:$Q$86,41,FALSE),$C$50) -> 0.12 | I50: =AVERAGE(C50:G50) -> 0.12
A51: Avg 1st Year Annual Persistency | C51: 0.9 | D51: =C51 -> 0.9 | E51: =C51 -> 0.9 | F51: =C51 -> 0.9 | G51: =C51 -> 0.9 | I51: =AVERAGE(C51:G51) -> 0.9
A52: Avg Renewal Annual Persistency | C52: 0.9 | D52: =C52 -> 0.9 | E52: =C52 -> 0.9 | F52: =C52 -> 0.9 | G52: =C52 -> 0.9 | I52: =AVERAGE(C52:G52) -> 0.9
A53: Total 1st Year Premium Collected | C53: =$B48*C49*12*C51 -> 0 | D53: =$B48*D49*12*D51 -> 0 | E53: 0 | F53: 0 | G53: 0 | I53: =SUM(C53:G53) -> 0
A54: Total Renewal Premium Collected | D54: =C53*D52 -> 0 | E54: =(D53+D54)*E52 -> 0 | F54: =(E53+E54)*F52 -> 0 | G54: =(F53+F54)*G52 -> 0 | I54: =SUM(C54:G54) -> 0
A55: Annual Commission Paid $ | C55: =C53*C50 -> 0 | D55: =D53*D50 -> 0 | E55: =E53*E50 -> 0 | F55: =F53*F50 -> 0 | G55: =G53*G50 -> 0 | I55: =SUM(C55:G55) -> 0
A56: Renewal Commission Paid $ | C56: 0 | D56: =D54*D50 -> 0 | E56: =E54*E50 -> 0 | F56: =F54*F50 -> 0 | G56: =G54*G50 -> 0 | I56: =SUM(C56:G56) -> 0
A58: Commercial/Farm Umbrella
A59: Avg Annual Prem Per Policy | B59: 0
A60: Avg # Policies Per Month | C60: 0 | D60: 0 | E60: 0 | F60: 0 | G60: 0 | I60: =SUM(C60:G60)*12 -> 0
A61: Commission % | C61: =HLOOKUP(AgentType,'AAA-AAP Variables'!$P$1:$Q$86,42,FALSE) -> 0.105 | D61: =IF($C$61=HLOOKUP(AgentType,'AAA-AAP Variables'!$P$1:$Q$86,42,FALSE),HLOOKUP(AgentType,'AAA-AAP Variables'!$P$1:$Q$86,43,FALSE),$C$61) -> 0.105 | E61: =IF($C$61=HLOOKUP(AgentType,'AAA-AAP Variables'!$P$1:$Q$86,42,FALSE),HLOOKUP(AgentType,'AAA-AAP Variables'!$P$1:$Q$86,44,FALSE),$C$61) -> 0.105 | F61: =IF($C$61=HLOOKUP(AgentType,'AAA-AAP Variables'!$P$1:$Q$86,42,FALSE),HLOOKUP(AgentType,'AAA-AAP Variables'!$P$1:$Q$86,45,FALSE),$C$61) -> 0.105 | G61: =IF($C$61=HLOOKUP(AgentType,'AAA-AAP Variables'!$P$1:$Q$86,42,FALSE),HLOOKUP(AgentType,'AAA-AAP Variables'!$P$1:$Q$86,46,FALSE),$C$61) -> 0.105 | I61: =AVERAGE(C61:G61) -> 0.105
A62: Avg 1st Year Annual Persistency | C62: 0.9 | D62: =C62 -> 0.9 | E62: =C62 -> 0.9 | F62: =C62 -> 0.9 | G62: =C62 -> 0.9 | I62: =AVERAGE(C62:G62) -> 0.9
A63: Avg Renewal Annual Persistency | C63: 0.9 | D63: =C63 -> 0.9 | E63: =C63 -> 0.9 | F63: =C63 -> 0.9 | G63: =C63 -> 0.9 | I63: =AVERAGE(C63:G63) -> 0.9
A64: Total 1st Year Premium Collected | C64: =$B59*C60*12*C62 -> 0 | D64: =$B59*D60*12*D62 -> 0 | E64: 0 | F64: 0 | G64: 0 | I64: =SUM(C64:G64) -> 0
A65: Total Renewal Premium Collected | D65: =C64*D63 -> 0 | E65: =(D64+D65)*E63 -> 0 | F65: =(E64+E65)*F63 -> 0 | G65: =(F64+F65)*G63 -> 0 | I65: =SUM(C65:G65) -> 0
A66: Annual Commission Paid $ | C66: =C64*C61 -> 0 | D66: =D64*D61 -> 0 | E66: =E64*E61 -> 0 | F66: =F64*F61 -> 0 | G66: =G64*G61 -> 0 | I66: =SUM(C66:G66) -> 0
A67: Renewal Commission Paid $ | C67: 0 | D67: =D65*D61 -> 0 | E67: =E65*E61 -> 0 | F67: =F65*F61 -> 0 | G67: =G65*G61 -> 0 | I67: =SUM(C67:G67) -> 0
A71: Total COMMERCIAL LINES PROPERTY and CASUALTY Premium | C71: =C9+C10+C20+C21+C31+C32+C42+C43+C53+C54+C64+C65 -> 0 | D71: =D9+D10+D20+D21+D31+D32+D42+D43+D53+D54+D64+D65 -> 0 | E71: 0 | F71: 0 | G71: 0 | I71: =SUM(C71:G71) -> 0
I73: ='Income Generator'!J150 -> 16JUL18/mlm/wch

Sheet Income Generator
B2: Agency Plan | G2: Candidate | H2: =MacroDefaults!B1 -> Mr./ Mrs. Agent
B3: NAME OF CANDIDATE | H3: =TODAY() -> 2018-08-30 | J3: Page -1 of 2-
B4: Product Type | C4: Per Policy | D4: New and Renewal Premiums and Commissions
B6: PERSONAL LINES PROPERTY and CASUALTY Products | C6: Avg Prem. ea. | D6: Year 1 | E6: Year 2 | F6: Year 3 | G6: Year 4 | H6: Year 5 | J6: 5 Year Cumm
B7: Personal Auto Premium Summary | C7: ='Personal Lines P&C'!B5 -> 0 | D7: =SUM('Personal Lines P&C'!C10:C11) -> 0 | E7: =SUM('Personal Lines P&C'!D10:D11) -> 0 | F7: =SUM('Personal Lines P&C'!E10:E11) -> 0 | G7: =SUM('Personal Lines P&C'!F10:F11) -> 0 | H7: =SUM('Personal Lines P&C'!G10:G11) -> 0 | J7: =SUM(D7:H7) -> 0
B8: Personal Auto Commission Summary | D8: ='Personal Lines P&C'!C12+'Personal Lines P&C'!C13 -> 0 | E8: =SUM('Personal Lines P&C'!D12:D13) -> 0 | F8: =SUM('Personal Lines P&C'!E12:E13) -> 0 | G8: =SUM('Personal Lines P&C'!F12:F13) -> 0 | H8: =SUM('Personal Lines P&C'!G12:G13) -> 0 | J8: =SUM(D8:H8) -> 0
B9: Personal Home Premium Summary | C9: ='Personal Lines P&C'!B16 -> 0 | D9: =SUM('Personal Lines P&C'!C21:C22) -> 0 | E9: =SUM('Personal Lines P&C'!D21:D22) -> 0 | F9: =SUM('Personal Lines P&C'!E21:E22) -> 0 | G9: =SUM('Personal Lines P&C'!F21:F22) -> 0 | H9: =SUM('Personal Lines P&C'!G21:G22) -> 0 | J9: =SUM(D9:H9) -> 0
B10: Personal Home Commission Summary | D10: =SUM('Personal Lines P&C'!C23:C24) -> 0 | E10: =SUM('Personal Lines P&C'!D23:D24) -> 0 | F10: =SUM('Personal Lines P&C'!E23:E24) -> 0 | G10: =SUM('Personal Lines P&C'!F23:F24) -> 0 | H10: =SUM('Personal Lines P&C'!G23:G24) -> 0 | J10: 0
B11: Personal Umbrella Premium Summary | C11: ='Personal Lines P&C'!B27 -> 0 | D11: =SUM('Personal Lines P&C'!C32:C33) -> 0 | E11: =SUM('Personal Lines P&C'!D32:D33) -> 0 | F11: =SUM('Personal Lines P&C'!E32:E33) -> 0 | G11: =SUM('Personal Lines P&C'!F32:F33) -> 0 | H11: =SUM('Personal Lines P&C'!G32:G33) -> 0 | J11: 0
B12: Personal Umbrella Commission Summary | D12: =SUM('Personal Lines P&C'!C34:C35) -> 0 | E12: =SUM('Personal Lines P&C'!D34:D35) -> 0 | F12: =SUM('Personal Lines P&C'!E34:E35) -> 0 | G12: =SUM('Personal Lines P&C'!F34:F35) -> 0 | H12: =SUM('Personal Lines P&C'!G34:G35) -> 0 | J12: 0
J13: 0
B14: Personal Lines Premium Summary | D14: =D7+D9+D11 -> 0 | E14: =E7+E9+E11 -> 0 | F14: 0 | G14: 0 | H14: 0 | J14: 0
B15: Personal Lines Commission Summary | D15: =D8+D10+D12 -> 0 | E15: =E8+E10+E12 -> 0 | F15: 0 | G15: 0 | H15: 0 | J15: 0
B17: COMMERCIAL LINES PROPERTY and CASUALTY Products | C17: Avg Prem. ea. | D17: Year 1 | E17: Year 2 | F17: Year 3 | G17: Year 4 | H17: Year 5 | J17: 5 Year Cumm
B18: BOP Premium Summary | C18: ='Commercial Lines P&C'!B4 -> 0 | D18: =SUM('Commercial Lines P&C'!C9:C10) -> 0 | E18: =SUM('Commercial Lines P&C'!D9:D10) -> 0 | F18: =SUM('Commercial Lines P&C'!E9:E10) -> 0 | G18: =SUM('Commercial Lines P&C'!F9:F10) -> 0 | H18: =SUM('Commercial Lines P&C'!G9:G10) -> 0 | J18: =SUM(D18:H18) -> 0
B19: BOP Commission Summary | D19: =SUM('Commercial Lines P&C'!C11:C12) -> 0 | E19: =SUM('Commercial Lines P&C'!D11:D12) -> 0 | F19: =SUM('Commercial Lines P&C'!E11:E12) -> 0 | G19: =SUM('Commercial Lines P&C'!F11:F12) -> 0 | H19: =SUM('Commercial Lines P&C'!G11:G12) -> 0 | J19: 0
B20: Business Auto Premium Summary | C20: ='Commercial Lines P&C'!B15 -> 0 | D20: =SUM('Commercial Lines P&C'!C20:C21) -> 0 | E20: =SUM('Commercial Lines P&C'!D20:D21) -> 0 | F20: =SUM('Commercial Lines P&C'!E20:E21) -> 0 | G20: =SUM('Commercial Lines P&C'!F20:F21) -> 0 | H20: =SUM('Commercial Lines P&C'!G20:G21) -> 0 | J20: 0
B21: Business Auto Commission Summary | D21: =SUM('Commercial Lines P&C'!C22:C23) -> 0 | E21: =SUM('Commercial Lines P&C'!D22:D23) -> 0 | F21: =SUM('Commercial Lines P&C'!E22:E23) -> 0 | G21: =SUM('Commercial Lines P&C'!F22:F23) -> 0 | H21: =SUM('Commercial Lines P&C'!G22:G23) -> 0 | J21: 0
B22: SFP Premium Summary | C22: ='Commercial Lines P&C'!B26 -> 0 | D22: =SUM('Commercial Lines P&C'!C31:C32) -> 0 | E22: =SUM('Commercial Lines P&C'!D31:D32) -> 0 | F22: =SUM('Commercial Lines P&C'!E31:E32) -> 0 | G22: =SUM('Commercial Lines P&C'!F31:F32) -> 0 | H22: =SUM('Commercial Lines P&C'!G31:G32) -> 0 | J22: 0
B23: SFP Commission Summary | D23: =SUM('Commercial Lines P&C'!C33:C34) -> 0 | E23: =SUM('Commercial Lines P&C'!D33:D34) -> 0 | F23: =SUM('Commercial Lines P&C'!E33:E34) -> 0 | G23: =SUM('Commercial Lines P&C'!F33:F34) -> 0 | H23: =SUM('Commercial Lines P&C'!G33:G34) -> 0 | J23: 0
B24: Workers Compensation Premium Summary | C24: ='Commercial Lines P&C'!B37 -> 0 | D24: =SUM('Commercial Lines P&C'!C42:C43) -> 0 | E24: =SUM('Commercial Lines P&C'!D42:D43) -> 0 | F24: =SUM('Commercial Lines P&C'!E42:E43) -> 0 | G24: =SUM('Commercial Lines P&C'!F42:F43) -> 0 | H24: =SUM('Commercial Lines P&C'!G42:G43) -> 0 | J24: 0
B25: Workers Compensation Commission Summary | D25: =SUM('Commercial Lines P&C'!C44:C45) -> 0 | E25: =SUM('Commercial Lines P&C'!D44:D45) -> 0 | F25: =SUM('Commercial Lines P&C'!E44:E45) -> 0 | G25: =SUM('Commercial Lines P&C'!F44:F45) -> 0 | H25: =SUM('Commercial Lines P&C'!G44:G45) -> 0 | J25: 0
B26: CPP Premium Summary | C26: ='Commercial Lines P&C'!B48 -> 0 | D26: =SUM('Commercial Lines P&C'!C53:C54) -> 0 | E26: =SUM('Commercial Lines P&C'!D53:D54) -> 0 | F26: =SUM('Commercial Lines P&C'!E53:E54) -> 0 | G26: =SUM('Commercial Lines P&C'!F53:F54) -> 0 | H26: =SUM('Commercial Lines P&C'!G53:G54) -> 0 | J26: 0
B27: CPP Commission Summary | D27: =SUM('Commercial Lines P&C'!C55:C56) -> 0 | E27: =SUM('Commercial Lines P&C'!D55:D56) -> 0 | F27: =SUM('Commercial Lines P&C'!E55:E56) -> 0 | G27: =SUM('Commercial Lines P&C'!F55:F56) -> 0 | H27: =SUM('Commercial Lines P&C'!G55:G56) -> 0 | J27: 0
B28: Comm/Farm Umbrella Premium Summary | C28: ='Commercial Lines P&C'!B59 -> 0 | D28: =SUM('Commercial Lines P&C'!C64:C65) -> 0 | E28: =SUM('Commercial Lines P&C'!D64:D65) -> 0 | F28: =SUM('Commercial Lines P&C'!E64:E65) -> 0 | G28: =SUM('Commercial Lines P&C'!F64:F65) -> 0 | H28: =SUM('Commercial Lines P&C'!G64:G65) -> 0 | J28: 0
B29: Comm/Farm Umbrella Commission Summary | D29: =SUM('Commercial Lines P&C'!C66:C67) -> 0 | E29: =SUM('Commercial Lines P&C'!D66:D67) -> 0 | F29: =SUM('Commercial Lines P&C'!E66:E67) -> 0 | G29: =SUM('Commercial Lines P&C'!F66:F67) -> 0 | H29: =SUM('Commercial Lines P&C'!G66:G67) -> 0 | J29: 0
B31: Commercial Lines Premium Summary | D31: =D18+D20+D22+D24+D26+D28 -> 0 | E31: =E18+E20+E22+E24+E26+E28 -> 0 | F31: 0 | G31: 0 | H31: 0 | J31: =SUM(D31:H31) -> 0
B32: Commercial Lines Commission Summary | D32: =D19+D21+D23+D25+D27+D29 -> 0 | E32: =E19+E21+E23+E25+E27+E29 -> 0 | F32: 0 | G32: 0 | H32: 0 | J32: 0
B34: Total PROPERTY and CASUALTY Premium | D34: =D14+D31 -> 0 | E34: =E14+E31 -> 0 | F34: 0 | G34: 0 | H34: 0 | J34: =SUM(D34:H34) -> 0 | M34: =J34/5 -> 0
B35: TOTAL PROPERTY and CASUALTY Est. Comp. Paid $ | D35: =D15+D32 -> 0 | E35: =E15+E32 -> 0 | F35: 0 | G35: 0 | H35: 0 | J35: =SUM(D35:H35) -> 0 | M35: =J35/5 -> 0
B37: LIFE INSURANCE Products | C37: Avg Prem. ea. | D37: Year 1 | E37: Year 2 | F37: Year 3 | G37: Year 4 | H37: Year 5 | J37: 5 Year Cumm
B38: Term Life - Avg Annualized Commissionable Prem Per Policy | C38: 0
B39: Avg # Term Life Policies Per Month | D39: 0 | E39: 0 | F39: 0 | G39: 0 | H39: 0 | J39: =SUM(D39:H39)*12 -> 0
B40: 1st Yr Commission % (as earned) | D40: =HLOOKUP(AgentType,'AAA-AAP Variables'!$P$1:$Q$86,47,FALSE) -> 0.6 | E40: =D40 -> 0.6 | F40: =D40 -> 0.6 | G40: =D40 -> 0.6 | H40: =D40 -> 0.6 | J40: =AVERAGE(D40:H40) -> 0.6
B41: Renewal Commission Paid % | D41: =HLOOKUP(AgentType,'AAA-AAP Variables'!$P$1:$Q$86,48,FALSE) -> 0 | E41: =IF($D$41=HLOOKUP(AgentType,'AAA-AAP Variables'!$P$1:$Q$86,48,FALSE),HLOOKUP(AgentType,'AAA-AAP Variables'!$P$1:$Q$86,49,FALSE),$D$41) -> 0 | F41: =IF($D$41=HLOOKUP(AgentType,'AAA-AAP Variables'!$P$1:$Q$86,48,FALSE),HLOOKUP(AgentType,'AAA-AAP Variables'!$P$1:$Q$86,50,FALSE),$D$41) -> 0 | G41: =IF($D$41=HLOOKUP(AgentType,'AAA-AAP Variables'!$P$1:$Q$86,48,FALSE),HLOOKUP(AgentType,'AAA-AAP Variables'!$P$1:$Q$86,51,FALSE),$D$41) -> 0 | H41: =IF($D$41=HLOOKUP(AgentType,'AAA-AAP Variables'!$P$1:$Q$86,48,FALSE),HLOOKUP(AgentType,'AAA-AAP Variables'!$P$1:$Q$86,51,FALSE),$D$41) -> 0 | J41: =AVERAGE(D41:H41) -> 0
B42: Avg 1st Year Annual Persistency | D42: 0.9 | E42: =D42 -> 0.9 | F42: =D42 -> 0.9 | G42: =D42 -> 0.9 | H42: =D42 -> 0.9 | J42: =AVERAGE(D42:H42) -> 0.9
B43: Avg Renewal Annual Persistency | D43: 0.95 | E43: =D43 -> 0.95 | F43: =D43 -> 0.95 | G43: =D43 -> 0.95 | H43: =D43 -> 0.95
B44: Total 1st Year Premium Collected | D44: =$C38*D39*12*D42 -> 0 | E44: =$C38*E39*12*E42 -> 0 | F44: =$C38*F39*12*F42 -> 0 | G44: =$C38*G39*12*G42 -> 0 | H44: =$C38*H39*12*H42 -> 0 | J44: =SUM(D44:H44) -> 0
B45: Total Renewal Premium Collected | E45: =D44*E43 -> 0 | F45: =(E44+E45)*F43 -> 0 | G45: =(F44+F45)*G43 -> 0 | H45: =(G44+G45)*H43 -> 0 | J45: =SUM(D45:H45) -> 0
B46: Annual 1st Year Commission Paid $ | D46: =D44*D40 -> 0 | E46: =E44*E40 -> 0 | F46: =F44*F40 -> 0 | G46: =G44*G40 -> 0 | H46: =H44*H40 -> 0 | J46: =SUM(D46:H46) -> 0
B47: Renewal Commission Paid $ | D47: 0 | E47: =E45*D41 -> 0 | F47: =E44*F43*D41+D44*E43*F43*E41 -> 0 | G47: =F44*G43*D41+E44*F43*G43*E41+D44*E43*F43*G43*F41 -> 0 | H47: =G44*H43*D41+F44*G43*H43*E41+E44*F43*G43*H43*F41+D44*E43*F43*G43*H43*G41 -> 0 | J47: =SUM(D47:H47) -> 0
B48: TOTAL Term Life Est. Comp. Paid $ | D48: =D47+D46 -> 0 | E48: =E47+E46 -> 0 | F48: =F47+F46 -> 0 | G48: =G47+G46 -> 0 | H48: =H47+H46 -> 0 | J48: =SUM(D48:H48) -> 0
B50: Universal Life - Avg Annual Commissionable Prem Per Policy | C50: 0
B51: Avg # Universal Life Policies Per Month | D51: 0 | E51: 0 | F51: 0 | G51: 0 | H51: 0 | J51: =SUM(D51:H51)*12 -> 0
B52: 1st Yr Commission % | D52: =HLOOKUP(AgentType,'AAA-AAP Variables'!$P$1:$Q$83,52,FALSE) -> 0.6 | E52: =D52 -> 0.6 | F52: =D52 -> 0.6 | G52: =D52 -> 0.6 | H52: =D52 -> 0.6 | J52: =AVERAGE(D52:H52) -> 0.6
B53: Renewal Commission Paid % | D53: =HLOOKUP(AgentType,'AAA-AAP Variables'!$P$1:$Q$83,53,FALSE) -> 0.024 | E53: =IF($D$53=HLOOKUP(AgentType,'AAA-AAP Variables'!$P$1:$Q$86,53,FALSE),HLOOKUP(AgentType,'AAA-AAP Variables'!$P$1:$Q$86,54,FALSE),$D$53) -> 0.024 | F53: =IF($D$53=HLOOKUP(AgentType,'AAA-AAP Variables'!$P$1:$Q$86,53,FALSE),HLOOKUP(AgentType,'AAA-AAP Variables'!$P$1:$Q$86,55,FALSE),$D$53) -> 0.024 | G53: =IF($D$53=HLOOKUP(AgentType,'AAA-AAP Variables'!$P$1:$Q$86,53,FALSE),HLOOKUP(AgentType,'AAA-AAP Variables'!$P$1:$Q$86,56,FALSE),$D$53) -> 0.024 | H53: =IF($D$53=HLOOKUP(AgentType,'AAA-AAP Variables'!$P$1:$Q$86,53,FALSE),HLOOKUP(AgentType,'AAA-AAP Variables'!$P$1:$Q$86,56,FALSE),$D$53) -> 0.024 | J53: =AVERAGE(E53:H53) -> 0.024
B54: Avg 1st Year Annual Persistency | D54: 0.87 | E54: =D54 -> 0.87 | F54: =D54 -> 0.87 | G54: =D54 -> 0.87 | H54: =D54 -> 0.87 | J54: =AVERAGE(D54:H54) -> 0.87
B55: Avg Renewal Annual Persistency | D55: 0.95 | E55: =D55 -> 0.95 | F55: =D55 -> 0.95 | G55: =D55 -> 0.95 | H55: =D55 -> 0.95 | J55: =AVERAGE(D55:H55) -> 0.95
B56: Total 1st Year Premium Collected | D56: =$C50*D51*12*D54 -> 0 | E56: =$C50*E51*12*E54 -> 0 | F56: =$C50*F51*12*F54 -> 0 | G56: =$C50*G51*12*G54 -> 0 | H56: =$C50*H51*12*H54 -> 0 | J56: =SUM(D56:H56) -> 0
B57: Total Renewal Premium Collected | E57: =D56*E55 -> 0 | F57: =(E56+E57)*F55 -> 0 | G57: =(F56+F57)*G55 -> 0 | H57: =(G56+G57)*H55 -> 0 | J57: =SUM(D57:H57) -> 0
B58: Annual 1st Year Commission Paid $ | D58: =D56*D52 -> 0 | E58: =E56*E52 -> 0 | F58: =F56*F52 -> 0 | G58: =G56*G52 -> 0 | H58: =H56*H52 -> 0 | J58: =SUM(D58:H58) -> 0
B59: Renewal Commission Paid $ | D59: 0 | E59: =E57*D53 -> 0 | F59: =E56*F55*D53+D56*E55*F55*E53 -> 0 | G59: =F56*G55*D53+E56*F55*G55*E53+D56*E55*F55*G55*F53 -> 0 | H59: =G56*H55*D53+F56*G55*H55*E53+E56*F55*G55*H55*F53+D56*E55*F55*G55*H55*G53 -> 0 | J59: =SUM(D59:H59) -> 0
B60: TOTAL Universal Life Est. Comp. Paid $ | D60: =D59+D58 -> 0 | E60: =E59+E58 -> 0 | F60: =F59+F58 -> 0 | G60: =G59+G58 -> 0 | H60: =H59+H58 -> 0 | J60: =SUM(D60:H60) -> 0 | M60: Annual Avg.
B62: Whole Life - Avg Annual Commissionable Prem Per Policy | C62: 0
B63: Avg # Whole Life Policies Per Month | D63: 0 | E63: 0 | F63: 0 | G63: 0 | H63: 0 | J63: =SUM(D63:H63)*12 -> 0
B64: 1st Yr Commission % | D64: =HLOOKUP(AgentType,'AAA-AAP Variables'!$P$1:$Q$83,57,FALSE) -> 0.6 | E64: =D64 -> 0.6 | F64: =D64 -> 0.6 | G64: =D64 -> 0.6 | H64: =D64 -> 0.6 | J64: =AVERAGE(D64:H64) -> 0.6
B65: Renewal Commission Paid % | D65: =HLOOKUP(AgentType,'AAA-AAP Variables'!$P$1:$Q$83,58,FALSE) -> 0.026 | E65: =IF($D$65=HLOOKUP(AgentType,'AAA-AAP Variables'!$P$1:$Q$86,58,FALSE),HLOOKUP(AgentType,'AAA-AAP Variables'!$P$1:$Q$86,59,FALSE),$D$65) -> 0.026 | F65: =IF($D$65=HLOOKUP(AgentType,'AAA-AAP Variables'!$P$1:$Q$86,58,FALSE),HLOOKUP(AgentType,'AAA-AAP Variables'!$P$1:$Q$86,60,FALSE),$D$65) -> 0.026 | G65: =IF($D$65=HLOOKUP(AgentType,'AAA-AAP Variables'!$P$1:$Q$86,58,FALSE),HLOOKUP(AgentType,'AAA-AAP Variables'!$P$1:$Q$86,61,FALSE),$D$65) -> 0.026 | H65: =IF($D$65=HLOOKUP(AgentType,'AAA-AAP Variables'!$P$1:$Q$86,58,FALSE),HLOOKUP(AgentType,'AAA-AAP Variables'!$P$1:$Q$86,61,FALSE),$D$65) -> 0.026 | J65: =AVERAGE(E65:H65) -> 0.026
B66: Avg 1st Year Annual Persistency | D66: 0.87 | E66: =D66 -> 0.87 | F66: =D66 -> 0.87 | G66: =D66 -> 0.87 | H66: =D66 -> 0.87 | J66: =AVERAGE(D66:H66) -> 0.87
B67: Avg Renewal Annual Persistency | D67: 0.95 | E67: =D67 -> 0.95 | F67: =D67 -> 0.95 | G67: =D67 -> 0.95 | H67: =D67 -> 0.95 | J67: =AVERAGE(D67:H67) -> 0.95
B68: Total 1st Year Premium Collected | D68: =$C62*D63*12*D66 -> 0 | E68: =$C62*E63*12*E66 -> 0 | F68: =$C62*F63*12*F66 -> 0 | G68: =$C62*G63*12*G66 -> 0 | H68: =$C62*H63*12*H66 -> 0 | J68: =SUM(D68:H68) -> 0
B69: Total Renewal Premium Collected | E69: =D68*E67 -> 0 | F69: =(E68+E69)*F67 -> 0 | G69: =(F68+F69)*G67 -> 0 | H69: =(G68+G69)*H67 -> 0 | J69: =SUM(D69:H69) -> 0
B70: Annual 1st Year Commission Paid $ | D70: =D68*D64 -> 0 | E70: =E68*E64 -> 0 | F70: =F68*F64 -> 0 | G70: =G68*G64 -> 0 | H70: =H68*H64 -> 0 | J70: =SUM(D70:H70) -> 0
B71: Renewal Commission Paid $ | D71: 0 | E71: =E69*D65 -> 0 | F71: =E68*F67*D65+D68*E67*F67*E65 -> 0 | G71: =F68*G67*D65+E68*F67*G67*E65+D68*E67*F67*G67*F65 -> 0 | H71: =G68*H67*D65+F68*G67*H67*E65+E68*F67*G67*H67*F65+D68*E67*F67*G67*H67*G65 -> 0 | J71: =SUM(D71:H71) -> 0
B72: TOTAL Whole Life Est. Comp. Paid $ | D72: =D71+D70 -> 0 | E72: =E71+E70 -> 0 | F72: =F71+F70 -> 0 | G72: =G71+G70 -> 0 | H72: =H71+H70 -> 0 | J72: =SUM(D72:H72) -> 0
B74: Total LIFE Premium Collected | D74: =D44+D45+D56+D57+D68+D69 -> 0 | E74: =E44+E45+E56+E57+E68+E69 -> 0 | F74: 0 | G74: 0 | H74: 0 | J74: =SUM(D74:H74) -> 0 | M74: =J74/5 -> 0
B75: TOTAL LIFE Products Comp. Est. Paid $ | D75: =D60+D48+D72 -> 0 | E75: =E60+E48+E72 -> 0 | F75: 0 | G75: 0 | H75: 0 | J75: =SUM(D75:H75) -> 0 | M75: =J75/5 -> 0
B77: ANNUITIES | C77: Avg Value ea. | D77: Year 1 | E77: Year 2 | F77: Year 3 | G77: Year 4 | H77: Year 5 | J77: 5 Year Cumm
B78: Fixed Annuities (Q or NQ) - Avg Value Per Annuity | C78: 0
B79: Average # Fixed Annuities Per Month | D79: 0 | E79: 0 | F79: 0 | G79: 0 | H79: 0 | J79: =SUM(D79:H79)*12 -> 0
B80: 1st Yr Commission % | D80: =HLOOKUP(AgentType,'AAA-AAP Variables'!$P$1:$Q$83,62,FALSE) -> 0.05 | E80: =D80 -> 0.05 | F80: =D80 -> 0.05 | G80: =D80 -> 0.05 | H80: =D80 -> 0.05 | J80: =AVERAGE(D80:H80) -> 0.05
B81: Renewal Commission Paid % | D81: =HLOOKUP(AgentType,'AAA-AAP Variables'!$P$1:$Q$83,63,FALSE) -> 0 | E81: =D81 -> 0 | F81: =D81 -> 0 | G81: =D81 -> 0 | H81: =D81 -> 0 | J81: =AVERAGE(E81:H81) -> 0
B82: Avg Annual Persistency | D82: 0.99 | E82: =D82 -> 0.99 | F82: =D82 -> 0.99 | G82: =D82 -> 0.99 | H82: =D82 -> 0.99 | J82: =AVERAGE(D82:H82) -> 0.99
B83: Total Premium | D83: =$C78*D79*12 -> 0 | E83: =$C78*E79*12 -> 0 | F83: =$C78*F79*12 -> 0 | G83: =$C78*G79*12 -> 0 | H83: =$C78*H79*12 -> 0 | J83: =SUM(D83:H83) -> 0
B84: Annual Commission Paid $ (after persistency adjustment) | D84: =D83*D80*D82 -> 0 | E84: =E83*E80*E82 -> 0 | F84: =F83*F80*F82 -> 0 | G84: =G83*G80*G82 -> 0 | H84: =H83*H80*H82 -> 0 | J84: =SUM(D84:H84) -> 0
B85: Renewal Commission Paid $ | D85: 0 | E85: =D83*D82*E81 -> 0 | F85: =(D83*D82+E83)*E82*F81 -> 0 | G85: =(((D83*D82+E83)*E82)+F83)*F82*G81 -> 0 | H85: =((((((D83*D82+E83)*E82)+F83)*F82)+G83)*G82)*H81 -> 0 | J85: =SUM(D85:H85) -> 0
B86: TOTAL Fixed Annuity Est. Comp. Paid $ | D86: =D85+D84 -> 0 | E86: =E85+E84 -> 0 | F86: =F85+F84 -> 0 | G86: =G85+G84 -> 0 | H86: =H85+H84 -> 0 | J86: =SUM(D86:H86) -> 0
B88: Pensions (small business pensions) - Avg Value Per Pension | C88: 0
B89: Average # Pensions Per Month | D89: 0 | E89: 0 | F89: 0 | G89: 0 | H89: 0 | J89: =SUM(D89:H89)*12 -> 0
B90: 1st Yr Commission % | D90: =HLOOKUP(AgentType,'AAA-AAP Variables'!$P$1:$Q$83,67,FALSE) -> 0.0415 | E90: =D90 -> 0.0415 | F90: =D90 -> 0.0415 | G90: =D90 -> 0.0415 | H90: =D90 -> 0.0415 | J90: =AVERAGE(D90:H90) -> 0.0415
B91: Renewal Commission Paid % | D91: =HLOOKUP(AgentType,'AAA-AAP Variables'!$P$1:$Q$83,68,FALSE) -> 0.0415 | E91: =D91 -> 0.0415 | F91: =D91 -> 0.0415 | G91: =D91 -> 0.0415 | H91: =D91 -> 0.0415 | J91: =AVERAGE(D91:H91) -> 0.0415
B92: Avg 1st Year Annual Persistency | D92: 0.99 | E92: =D92 -> 0.99 | F92: =D92 -> 0.99 | G92: =D92 -> 0.99 | H92: =D92 -> 0.99 | J92: =AVERAGE(D92:H92) -> 0.99
B93: Avg Renewal Annual Persistency | D93: 0.99 | E93: =D93 -> 0.99 | F93: =D93 -> 0.99 | G93: =D93 -> 0.99 | H93: =D93 -> 0.99 | J93: =AVERAGE(D93:H93) -> 0.99
B94: Total 1st Year Premium Collected | D94: =$C88*D89*12*D92 -> 0 | E94: =$C88*E89*12*E92 -> 0 | F94: =$C88*F89*12*F92 -> 0 | G94: =$C88*G89*12*G92 -> 0 | H94: =$C88*H89*12*H92 -> 0 | J94: =SUM(D94:H94) -> 0
B95: Total Renewal Premium Collected | E95: =D94*E93 -> 0 | F95: =(E94+E95)*F93 -> 0 | G95: =(F94+F95)*G93 -> 0 | H95: =(G94+G95)*H93 -> 0 | J95: =SUM(D95:H95) -> 0
B96: Annual Commission Paid $ | D96: =D94*D90 -> 0 | E96: =E94*E90 -> 0 | F96: =F94*F90 -> 0 | G96: =G94*G90 -> 0 | H96: =H94*H90 -> 0 | J96: =SUM(D96:H96) -> 0
B97: Renewal Commission Paid $ | D97: 0 | E97: =E95*D91 -> 0 | F97: =E94*F93*D91+D94*E93*F93*E91 -> 0 | G97: =F94*G93*D91+E94*F93*G93*E91+D94*E93*F93*G93*F91 -> 0 | H97: =G94*H93*D91+F94*G93*H93*E91+E94*F93*G93*H93*F91+D94*E93*F93*G93*H93*G91 -> 0 | J97: =SUM(D97:H97) -> 0
B98: TOTAL Pension Est. Comp. Paid $ | D98: =D97+D96 -> 0 | E98: =E97+E96 -> 0 | F98: =F97+F96 -> 0 | G98: =G97+G96 -> 0 | H98: =H97+H96 -> 0 | J98: =SUM(D98:H98) -> 0 | M98: Annual Avg.
B100: Total ANNUITIES and PENSIONS Premium | D100: =D83+D94+D95 -> 0 | E100: =E83+E94+E95 -> 0 | F100: =F83+F94+F95 -> 0 | G100: =G83+G94+G95 -> 0 | H100: =H83+H94+H95 -> 0 | J100: =SUM(D100:H100) -> 0 | M100: =J100/5 -> 0
B101: TOTAL ANNUITIES and PENSIONS Est. Comp. Paid $ | D101: =D86+D98 -> 0 | E101: =E86+E98 -> 0 | F101: =F86+F98 -> 0 | G101: =G86+G98 -> 0 | H101: =H86+H98 -> 0 | J101: =SUM(D101:H101) -> 0 | M101: =J101/5 -> 0
B103: (continued on Page -2-)
J104: Page -2 of 2-
B105: Disability, LTC, Health | C105: Avg Value ea. | D105: Year 1 | E105: Year 2 | F105: Year 3 | G105: Year 4 | H105: Year 5 | J105: 5 Year Cumm
B106: Disability - Avg Annual Premium Per Policy | C106: 0
B107: Average # Disability Policies Per Month | D107: 0 | E107: 0 | F107: 0 | G107: 0 | H107: 0 | J107: =SUM(D107:H107)*12 -> 0
B108: 1st Yr Commission % | D108: =HLOOKUP(AgentType,'AAA-AAP Variables'!$P$1:$Q$83,72,FALSE) -> 0.5 | E108: =D108 -> 0.5 | F108: =D108 -> 0.5 | G108: =D108 -> 0.5 | H108: =D108 -> 0.5 | J108: =AVERAGE(D108:H108) -> 0.5
B109: Renewal Commission Paid % | D109: =HLOOKUP(AgentType,'AAA-AAP Variables'!$P$1:$Q$83,73,FALSE) -> 0.1 | E109: =D109 -> 0.1 | F109: =D109 -> 0.1 | G109: =D109 -> 0.1 | H109: =D109 -> 0.1 | J109: =AVERAGE(D109:H109) -> 0.1
B110: Avg 1st Year Annual Persistency | D110: 0.9 | E110: =D110 -> 0.9 | F110: =D110 -> 0.9 | G110: =D110 -> 0.9 | H110: =D110 -> 0.9 | J110: =AVERAGE(D110:H110) -> 0.9
B111: Avg Renewal Annual Persistency | D111: 0.9 | E111: =D111 -> 0.9 | F111: =D111 -> 0.9 | G111: =D111 -> 0.9 | H111: =D111 -> 0.9 | J111: =AVERAGE(D111:H111) -> 0.9
B112: Total 1st Year Premium Collected | D112: =$C106*D107*12*D110 -> 0 | E112: =$C106*E107*12*E110 -> 0 | F112: =$C106*F107*12*F110 -> 0 | G112: =$C106*G107*12*G110 -> 0 | H112: =$C106*H107*12*H110 -> 0 | J112: =SUM(D112:H112) -> 0
B113: Total Renewal Premium Collected | E113: =D112*E111 -> 0 | F113: =(E112+E113)*F111 -> 0 | G113: =(F112+F113)*G111 -> 0 | H113: =(G112+G113)*H111 -> 0 | J113: =SUM(D113:H113) -> 0
B114: Annual Commission Paid $ | D114: =D112*D108 -> 0 | E114: =E112*E108 -> 0 | F114: =F112*F108 -> 0 | G114: =G112*G108 -> 0 | H114: =H112*H108 -> 0 | J114: =SUM(D114:H114) -> 0
B115: Renewal Commission Paid $ | D115: 0 | E115: =E113*D109 -> 0 | F115: =E112*F111*D109+D112*E111*F111*E109 -> 0 | G115: =F112*G111*D109+E112*F111*G111*E109+D112*E111*F111*G111*F109 -> 0 | H115: =G112*H111*D109+F112*G111*H111*E109+E112*F111*G111*H111*F109+D112*E111*F111*G111*H111*G109 -> 0 | J115: =SUM(D115:H115) -> 0
B116: TOTAL Disability Est. Comp. Paid $ | D116: =D115+D114 -> 0 | E116: =E115+E114 -> 0 | F116: =F115+F114 -> 0 | G116: =G115+G114 -> 0 | H116: =H115+H114 -> 0 | J116: =SUM(D116:H116) -> 0
B118: Long Term Care - Avg Premium Per Policy | C118: 0
B119: Average # LTC Policies Per Month | D119: 0 | E119: 0 | F119: 0 | G119: 0 | H119: 0 | J119: =SUM(D119:H119)*12 -> 0
B120: 1st Yr Commission % | D120: =HLOOKUP(AgentType,'AAA-AAP Variables'!$P$1:$Q$83,77,FALSE) -> 0.65 | E120: =D120 -> 0.65 | F120: =D120 -> 0.65 | G120: =D120 -> 0.65 | H120: =D120 -> 0.65 | J120: =AVERAGE(D120:H120) -> 0.65
B121: Renewal Commission Paid % | D121: =HLOOKUP(AgentType,'AAA-AAP Variables'!$P$1:$Q$83,78,FALSE) -> 0.08 | E121: =D121 -> 0.08 | F121: =D121 -> 0.08 | G121: =D121 -> 0.08 | H121: =D121 -> 0.08 | J121: =AVERAGE(D121:H121) -> 0.08
B122: Avg 1st Year Annual Persistency | D122: 0.9 | E122: =D122 -> 0.9 | F122: =D122 -> 0.9 | G122: =D122 -> 0.9 | H122: =D122 -> 0.9 | J122: =AVERAGE(D122:H122) -> 0.9
B123: Avg Renewal Annual Persistency | D123: 0.9 | E123: =D123 -> 0.9 | F123: =D123 -> 0.9 | G123: =D123 -> 0.9 | H123: =D123 -> 0.9 | J123: =AVERAGE(D123:H123) -> 0.9
B124: Total 1st Year Premium Collected | D124: =$C118*D119*12*D122 -> 0 | E124: =$C118*E119*12*E122 -> 0 | F124: =$C118*F119*12*F122 -> 0 | G124: =$C118*G119*12*G122 -> 0 | H124: =$C118*H119*12*H122 -> 0 | J124: =SUM(D124:H124) -> 0
B125: Total Renewal Premium Collected | E125: =D124*E123 -> 0 | F125: =(E124+E125)*F123 -> 0 | G125: =(F124+F125)*G123 -> 0 | H125: =(G124+G125)*H123 -> 0 | J125: =SUM(D125:H125) -> 0
B126: Annual Commission Paid $ | D126: =D124*D120 -> 0 | E126: =E124*E120 -> 0 | F126: =F124*F120 -> 0 | G126: =G124*G120 -> 0 | H126: =H124*H120 -> 0 | J126: =SUM(D126:H126) -> 0
B127: Renewal Commission Paid $ | D127: 0 | E127: =E125*D121 -> 0 | F127: =E124*F123*D121+D124*E123*F123*E121 -> 0 | G127: =F124*G123*D121+E124*F123*G123*E121+D124*E123*F123*G123*F121 -> 0 | H127: =G124*H123*D121+F124*G123*H123*E121+E124*F123*G123*H123*F121+D124*E123*F123*G123*H123*G121 -> 0 | J127: =SUM(D127:H127) -> 0
B128: TOTAL LTC Est. Comp. Paid $ | D128: =D127+D126 -> 0 | E128: =E127+E126 -> 0 | F128: =F127+F126 -> 0 | G128: =G127+G126 -> 0 | H128: =H127+H126 -> 0 | J128: =SUM(D128:H128) -> 0
B130: Health Insurance - Avg Premium Per Policy | C130: 0
B131: Average # Health Ins Policies Per Month | D131: 0 | E131: 0 | F131: 0 | G131: 0 | H131: 0 | J131: =SUM(D131:H131)*12 -> 0
B132: 1st Yr Commission % | D132: =HLOOKUP(AgentType,'AAA-AAP Variables'!$P$1:$Q$83,82,FALSE) -> 0.09 | E132: =D132 -> 0.09 | F132: =D132 -> 0.09 | G132: =D132 -> 0.09 | H132: =D132 -> 0.09 | J132: =AVERAGE(D132:H132) -> 0.09
B133: Renewal Commission Paid % | D133: =HLOOKUP(AgentType,'AAA-AAP Variables'!$P$1:$Q$83,83,FALSE) -> 0.04 | E133: =D133 -> 0.04 | F133: =D133 -> 0.04 | G133: =D133 -> 0.04 | H133: =D133 -> 0.04 | J133: =AVERAGE(D133:H133) -> 0.04
B134: Avg 1st Year Annual Persistency | D134: 0.9 | E134: =D134 -> 0.9 | F134: =D134 -> 0.9 | G134: =D134 -> 0.9 | H134: =D134 -> 0.9 | J134: =AVERAGE(D134:H134) -> 0.9
B135: Avg Renewal Annual Persistency | D135: 0.9 | E135: =D135 -> 0.9 | F135: =D135 -> 0.9 | G135: =D135 -> 0.9 | H135: =D135 -> 0.9 | J135: =AVERAGE(D135:H135) -> 0.9
B136: Total 1st Year Premium Collected | D136: =$C130*D131*12*D134 -> 0 | E136: =$C130*E131*12*E134 -> 0 | F136: =$C130*F131*12*F134 -> 0 | G136: =$C130*G131*12*G134 -> 0 | H136: =$C130*H131*12*H134 -> 0 | J136: =SUM(D136:H136) -> 0
B137: Total Renewal Premium Collected | E137: =D136*E135 -> 0 | F137: =(E136+E137)*F135 -> 0 | G137: =(F136+F137)*G135 -> 0 | H137: =(G136+G137)*H135 -> 0 | J137: =SUM(D137:H137) -> 0
B138: Annual Commission Paid $ | D138: =D136*D132 -> 0 | E138: =E136*E132 -> 0 | F138: =F136*F132 -> 0 | G138: =G136*G132 -> 0 | H138: =H136*H132 -> 0 | J138: =SUM(D138:H138) -> 0
B139: Renewal Commission Paid $ | D139: 0 | E139: =E137*D133 -> 0 | F139: =E136*F135*D133+D136*E135*F135*E133 -> 0 | G139: =F136*G135*D133+E136*F135*G135*E133+D136*E135*F135*G135*F133 -> 0 | H139: =G136*H135*D133+F136*G135*H135*E133+E136*F135*G135*H135*F133+D136*E135*F135*G135*H135*G133 -> 0 | J139: =SUM(D139:H139) -> 0
B140: TOTAL Health Ins. Est. Comp. Paid $ | D140: =D139+D138 -> 0 | E140: =E139+E138 -> 0 | F140: =F139+F138 -> 0 | G140: =G139+G138 -> 0 | H140: =H139+H138 -> 0 | J140: =SUM(D140:H140) -> 0 | M140: Annual Avg.
B142: Total Dis, LTC, Health Premium | D142: =D112+D113+D124+D125+D136+D137 -> 0 | E142: =E112+E113+E124+E125+E136+E137 -> 0 | F142: =F112+F113+F124+F125+F136+F137 -> 0 | G142: =G112+G113+G124+G125+G136+G137 -> 0 | H142: =H112+H113+H124+H125+H136+H137 -> 0 | J142: =SUM(D142:H142) -> 0 | M142: =J142/5 -> 0
B143: TOTAL Dis, LTC, Health Est. Comp. Paid $ | D143: =D140+D128+D116 -> 0 | E143: =E140+E128+E116 -> 0 | F143: =F140+F128+F116 -> 0 | G143: =G140+G128+G116 -> 0 | H143: =H140+H128+H116 -> 0 | J143: =SUM(D143:H143) -> 0 | M143: =J143/5 -> 0
M145: Annual Avg.
B146: TOTAL EST. COMPENSATION - ALL PRODUCTS | D146: =D143+D101+D75+D35 -> 0 | E146: =E143+E101+E75+E35 -> 0 | F146: =F143+F101+F75+F35 -> 0 | G146: =G143+G101+G75+G35 -> 0 | H146: =H143+H101+H75+H35 -> 0 | J146: =SUM(D146:H146) -> 0 | M146: =J146/5 -> 0
B149: ALL AMOUNTS SHOWN ARE ESTIMATES AND NOT GUARANTEED BY COMPANY
B150: DISCLAIMER: By entering my name to the right, I acknowledge that the figures projected in this spreadsheet are estimates only and not guarantees of income. | E150: Mr. /Mrs. Agent | J150: 16JUL18/mlm/wch
B152: INPUT CELLS = LIGHT YELLOW | H152: PROPRIETARY MATERIAL NOT FOR DISTRIBUTION
B156: INSTRUCTIONS FOR INCOME GENERATOR CALCULATOR USE
B157: 1- Use the light yellow cells as input cells. The remainder of the worksheet is protected so that the formulas are protected.
B158: 2- Save a second generic copy of the program so that if the formulas are corrupted you will always have a clean copy.
B159: 4- Input average premium for each policy or unit (as applicable by product) in the highlighted cells of column "C".
B160: 5- Input average policies or units per month and commission percentage assumptions (as applicable by product) in the highlighted cells of columns "D", "E", "F", "G", and "H" (years 1 through 5) for each product type (one line per product type).
B161: - Using partial numbers is ok - i.e. 1/2 policy per month would be entered as ".5"; 1 and 1/2 policies per month would be entered as "1.5", etc.
B162: 6- The Income Generator worksheet provides for some attrition on the lines titled "Average Annual Persistency". Input persistency assumptions in the yellow highlighted cells next to these titles..
B163: 7- As figures are input into each of the sections for each of the products, the calculator automatically projects total premium production and total compensation earned.
B164: 8- This Income Generator worksheet is for illustration purposes only to project potential income based on hypothetical production projections with average per policy/unit premium estimates.
B165: - This tool is provided only to help prospective agents see the income potential as they project their personal production in the various product areas available.

Sheet 5 Year Summary
B2: Agency Plan | H2: Candidate | J2: ='Income Generator'!$H$2 -> Mr./ Mrs. Agent
B3: ='Income Generator'!B3 -> NAME OF CANDIDATE | L3: =TODAY() -> 2018-08-30
B4: Product Type | C4: Per Policy | D4: New and Renewal Premiums and Commissions
C6: Avg Prem. ea. | D6: Year 1 | E6: Year 2 | F6: Year 3 | G6: Year 4 | H6: Year 5 | J6: 5 Year Cumm | L6: Annual Average
B7: ='Income Generator'!B34:C34 -> Total PROPERTY and CASUALTY Premium | C7: =AVERAGE('Income Generator'!C7,'Income Generator'!C9,'Income Generator'!C11,'Income Generator'!C18,'Income Generator'!C20,'Income Generator'!C22,'Income Generator'!C24,'Income Generator'!C26,'Income Generator'!C28) -> 0 | D7: ='Income Generator'!D34:E34 -> 0 | E7: ='Income Generator'!E34:F34 -> 0 | F7: ='Income Generator'!F34:G34 -> 0 | G7: ='Income Generator'!G34:H34 -> 0 | H7: ='Income Generator'!H34:I34 -> 0 | I7: ='Income Generator'!I34:J34 -> 0 | J7: ='Income Generator'!J34 -> 0 | L7: =J7/5 -> 0
B8: ='Income Generator'!B35:C35 -> TOTAL PROPERTY and CASUALTY Est. Comp. Paid $ | D8: ='Income Generator'!D35:E35 -> 0 | E8: ='Income Generator'!E35:F35 -> 0 | F8: ='Income Generator'!F35:G35 -> 0 | G8: ='Income Generator'!G35:H35 -> 0 | H8: ='Income Generator'!H35:I35 -> 0 | I8: ='Income Generator'!I35:J35 -> 0 | J8: ='Income Generator'!J35 -> 0 | L8: 0
B9: ='Income Generator'!B74:C74 -> Total LIFE Premium Collected | C9: =AVERAGE('Income Generator'!C38,'Income Generator'!C50,'Income Generator'!C62) -> 0 | D9: ='Income Generator'!D74 -> 0 | E9: ='Income Generator'!E74 -> 0 | F9: ='Income Generator'!F74 -> 0 | G9: ='Income Generator'!G74 -> 0 | H9: ='Income Generator'!H74 -> 0 | I9: ='Income Generator'!I74:J74 -> 0 | J9: ='Income Generator'!J74 -> 0 | L9: 0
B10: ='Income Generator'!B75:C75 -> TOTAL LIFE Products Comp. Est. Paid $ | D10: ='Income Generator'!D75 -> 0 | E10: ='Income Generator'!E75 -> 0 | F10: ='Income Generator'!F75 -> 0 | G10: ='Income Generator'!G75 -> 0 | H10: ='Income Generator'!H75 -> 0 | I10: ='Income Generator'!I75:J75 -> 0 | J10: ='Income Generator'!J75 -> 0 | L10: 0
B11: ='Income Generator'!B100:C100 -> Total ANNUITIES and PENSIONS Premium | C11: =AVERAGE('Income Generator'!C78,'Income Generator'!C88) -> 0 | D11: ='Income Generator'!D100:E100 -> 0 | E11: ='Income Generator'!E100:F100 -> 0 | F11: ='Income Generator'!F100:G100 -> 0 | G11: ='Income Generator'!G100:H100 -> 0 | H11: ='Income Generator'!H100:I100 -> 0 | I11: ='Income Generator'!I100:J100 -> 0 | J11: ='Income Generator'!J100 -> 0 | L11: 0
B12: ='Income Generator'!B101:C101 -> TOTAL ANNUITIES and PENSIONS Est. Comp. Paid $ | D12: ='Income Generator'!D101:E101 -> 0 | E12: ='Income Generator'!E101:F101 -> 0 | F12: ='Income Generator'!F101:G101 -> 0 | G12: ='Income Generator'!G101:H101 -> 0 | H12: ='Income Generator'!H101:I101 -> 0 | I12: ='Income Generator'!I101:J101 -> 0 | J12: ='Income Generator'!J101 -> 0 | L12: 0
B13: ='Income Generator'!B142:C142 -> Total Dis, LTC, Health Premium | C13: =AVERAGE('Income Generator'!C106,'Income Generator'!C118,'Income Generator'!C130) -> 0 | D13: ='Income Generator'!D142:E142 -> 0 | E13: ='Income Generator'!E142:F142 -> 0 | F13: ='Income Generator'!F142:G142 -> 0 | G13: ='Income Generator'!G142:H142 -> 0 | H13: ='Income Generator'!H142:I142 -> 0 | I13: ='Income Generator'!I142:J142 -> 0 | J13: ='Income Generator'!J142 -> 0 | L13: 0
B14: ='Income Generator'!B143:C143 -> TOTAL Dis, LTC, Health Est. Comp. Paid $ | D14: ='Income Generator'!D143:E143 -> 0 | E14: ='Income Generator'!E143:F143 -> 0 | F14: ='Income Generator'!F143:G143 -> 0 | G14: ='Income Generator'!G143:H143 -> 0 | H14: ='Income Generator'!H143:I143 -> 0 | I14: ='Income Generator'!I143:J143 -> 0 | J14: ='Income Generator'!J143 -> 0 | L14: 0
B16: ='Income Generator'!B146:C146 -> TOTAL EST. COMPENSATION - ALL PRODUCTS | D16: ='Income Generator'!D146:E146 -> 0 | E16: ='Income Generator'!E146:F146 -> 0 | F16: ='Income Generator'!F146:G146 -> 0 | G16: ='Income Generator'!G146:H146 -> 0 | H16: ='Income Generator'!H146:I146 -> 0 | I16: ='Income Generator'!I146:J146 -> 0 | J16: ='Income Generator'!J146 -> 0 | L16: =J16/5 -> 0
J18: ='Income Generator'!J150 -> 16JUL18/mlm/wch
B20: ALL AMOUNTS SHOWN ARE ESTIMATES AND NOT GUARANTEED BY COMPANY
B22: INPUT CELLS | E22: PROPRIETARY MATERIAL NOT FOR DISTRIBUTION
B25: DISCLAIMER: By entering my name to the right, I acknowledge that the figures projected in this spreadsheet are estimates only and not guarantees of income. | E25: ='Income Generator'!E150:G150 -> Mr. /Mrs. Agent

Sheet Agent Expense Budget
B2: AGENT EXPENSE BUDGET WORKSHEET
B3: Candidate | C3: ='Income Generator'!$H$2 -> Mr./ Mrs. Agent | O3: Updated: | P3: =TODAY() -> 2018-08-30
B4: Start Up Expenses | C4: Description | D4: Jan | E4: Feb | F4: Mar | G4: Apr | H4: May | I4: Jun | J4: Jul | K4: Aug | L4: Sep | M4: Oct | N4: Nov | O4: Dec | P4: Total
B6: Office furniture and equip. ($3,000) | C6: office desk, copy/fax, computer, phone, etc. | D6: 0 | E6: 0 | F6: 0 | G6: 0 | H6: 0 | I6: 0 | J6: 0 | K6: 0 | L6: 0 | M6: 0 | N6: 0 | O6: 0 | P6: =SUM(D6:O6) -> 0
B7: Furn. and equip for PT team member | C7: expense incurred in the 6th month | D7: 0 | E7: 0 | F7: 0 | G7: 0 | H7: 0 | I7: 0 | J7: 0 | K7: 0 | L7: 0 | M7: 0 | N7: 0 | O7: 0 | P7: =SUM(D7:O7) -> 0
B8: Rent deposit | C8: most offices require first months rent | D8: 0 | E8: 0 | F8: 0 | G8: 0 | H8: 0 | I8: 0 | J8: 0 | K8: 0 | L8: 0 | M8: 0 | N8: 0 | O8: 0 | P8: 0
B9: Signage not covered by company | C9: window and vehicle labeling, excess sign exp., etc. | D9: 0 | E9: 0 | F9: 0 | G9: 0 | H9: 0 | I9: 0 | J9: 0 | K9: 0 | L9: 0 | M9: 0 | N9: 0 | O9: 0 | P9: 0
B10: Bus. License and permits | C10: state and local | D10: 0 | E10: 0 | F10: 0 | G10: 0 | H10: 0 | I10: 0 | J10: 0 | K10: 0 | L10: 0 | M10: 0 | N10: 0 | O10: 0 | P10: 0
B11: Bus. Insurance policy | C11: BOP policy | D11: 0 | E11: 0 | F11: 0 | G11: 0 | H11: 0 | I11: 0 | J11: 0 | K11: 0 | L11: 0 | M11: 0 | N11: 0 | O11: 0 | P11: 0
B12: Other | D12: 0 | E12: 0 | F12: 0 | G12: 0 | H12: 0 | I12: 0 | J12: 0 | K12: 0 | L12: 0 | M12: 0 | N12: 0 | O12: 0 | P12: 0
B13: Other | D13: 0 | E13: 0 | F13: 0 | G13: 0 | H13: 0 | I13: 0 | J13: 0 | K13: 0 | L13: 0 | M13: 0 | N13: 0 | O13: 0 | P13: 0
B14: Other | D14: 0 | E14: 0 | F14: 0 | G14: 0 | H14: 0 | I14: 0 | J14: 0 | K14: 0 | L14: 0 | M14: 0 | N14: 0 | O14: 0 | P14: 0
B15: Other | D15: 0 | E15: 0 | F15: 0 | G15: 0 | H15: 0 | I15: 0 | J15: 0 | K15: 0 | L15: 0 | M15: 0 | N15: 0 | O15: 0 | P15: 0
B16: Other | D16: 0 | E16: 0 | F16: 0 | G16: 0 | H16: 0 | I16: 0 | J16: 0 | K16: 0 | L16: 0 | M16: 0 | N16: 0 | O16: 0 | P16: 0
B17: Sub-Total | D17: =SUM(D6:D16) -> 0 | E17: 0 | F17: 0 | G17: 0 | H17: 0 | I17: 0 | J17: 0 | K17: 0 | L17: 0 | M17: 0 | N17: 0 | O17: 0 | P17: =SUM(D17:O17) -> 0
B19: Monthly Office Expenses | C19: Description | D19: Jan | E19: Feb | F19: Mar | G19: Apr | H19: May | I19: Jun | J19: Jul | K19: Aug | L19: Sep | M19: Oct | N19: Nov | O19: Dec | P19: Total
B20: Rent | D20: 0 | E20: 0 | F20: 0 | G20: 0 | H20: 0 | I20: 0 | J20: 0 | K20: 0 | L20: 0 | M20: 0 | N20: 0 | O20: 0 | P20: =SUM(D20:O20) -> 0
B21: Postage | D21: 0 | E21: 0 | F21: 0 | G21: 0 | H21: 0 | I21: 0 | J21: 0 | K21: 0 | L21: 0 | M21: 0 | N21: 0 | O21: 0 | P21: =SUM(D21:O21) -> 0
B22: Accountant | D22: 0 | E22: 0 | F22: 0 | G22: 0 | H22: 0 | I22: 0 | J22: 0 | K22: 0 | L22: 0 | M22: 0 | N22: 0 | O22: 0 | P22: 0
B23: Dues | D23: 0 | E23: 0 | F23: 0 | G23: 0 | H23: 0 | I23: 0 | J23: 0 | K23: 0 | L23: 0 | M23: 0 | N23: 0 | O23: 0 | P23: 0
B24: NAIFA membership dues | C24: our advocate in the industry | D24: 0 | E24: 0 | F24: 0 | G24: 0 | H24: 0 | I24: 0 | J24: 0 | K24: 0 | L24: 0 | M24: 0 | N24: 0 | O24: 0 | P24: 0
B25: Seminar expenses | C25: travel expenses spread over 12 months | D25: 0 | E25: 0 | F25: 0 | G25: 0 | H25: 0 | I25: 0 | J25: 0 | K25: 0 | L25: 0 | M25: 0 | N25: 0 | O25: 0 | P25: 0
B26: Automobile expense (agent daily bus. travel) | D26: 0 | E26: 0 | F26: 0 | G26: 0 | H26: 0 | I26: 0 | J26: 0 | K26: 0 | L26: 0 | M26: 0 | N26: 0 | O26: 0 | P26: 0
B27: EandO insurance | D27: 0 | E27: 0 | F27: 0 | G27: 0 | H27: 0 | I27: 0 | J27: 0 | K27: 0 | L27: 0 | M27: 0 | N27: 0 | O27: 0 | P27: 0
B28: Bus. Insurance policy | D28: 0 | E28: 0 | F28: 0 | G28: 0 | H28: 0 | I28: 0 | J28: 0 | K28: 0 | L28: 0 | M28: 0 | N28: 0 | O28: 0 | P28: 0
B29: Gross Salary for part time team member | C29: 20/hours/week starting in 6th month $11/h | D29: 0 | E29: 0 | F29: 0 | G29: 0 | H29: 0 | I29: 0 | J29: 0 | K29: 0 | L29: 0 | M29: 0 | N29: 0 | O29: 0 | P29: 0
B30: Workers Comp. Ins. | D30: 0 | E30: 0 | F30: 0 | G30: 0 | H30: 0 | I30: 0 | J30: 0 | K30: 0 | L30: 0 | M30: 0 | N30: 0 | O30: 0 | P30: 0
B31: Continuing education | D31: 0 | E31: 0 | F31: 0 | G31: 0 | H31: 0 | I31: 0 | J31: 0 | K31: 0 | L31: 0 | M31: 0 | N31: 0 | O31: 0 | P31: 0
B32: Business Meals | C32: client meals and networking | D32: 0 | E32: 0 | F32: 0 | G32: 0 | H32: 0 | I32: 0 | J32: 0 | K32: 0 | L32: 0 | M32: 0 | N32: 0 | O32: 0 | P32: 0
B33: Office Supplies | D33: 0 | E33: 0 | F33: 0 | G33: 0 | H33: 0 | I33: 0 | J33: 0 | K33: 0 | L33: 0 | M33: 0 | N33: 0 | O33: 0 | P33: 0
B34: Utilities | D34: 0 | E34: 0 | F34: 0 | G34: 0 | H34: 0 | I34: 0 | J34: 0 | K34: 0 | L34: 0 | M34: 0 | N34: 0 | O34: 0 | P34: 0
B35: Internet and phones | D35: 0 | E35: 0 | F35: 0 | G35: 0 | H35: 0 | I35: 0 | J35: 0 | K35: 0 | L35: 0 | M35: 0 | N35: 0 | O35: 0 | P35: 0
B36: Agent medical expense | D36: 0 | E36: 0 | F36: 0 | G36: 0 | H36: 0 | I36: 0 | J36: 0 | K36: 0 | L36: 0 | M36: 0 | N36: 0 | O36: 0 | P36: 0
B37: Marketing and promotions | D37: 0 | E37: 0 | F37: 0 | G37: 0 | H37: 0 | I37: 0 | J37: 0 | K37: 0 | L37: 0 | M37: 0 | N37: 0 | O37: 0 | P37: 0
B38: Taxes (estimated) | C38: Fed, State, FICA, SS, Medicare | D38: 0 | E38: 0 | F38: 0 | G38: 0 | H38: 0 | I38: 0 | J38: 0 | K38: 0 | L38: 0 | M38: 0 | N38: 0 | O38: 0 | P38: 0
B39: Other | D39: 0 | E39: 0 | F39: 0 | G39: 0 | H39: 0 | I39: 0 | J39: 0 | K39: 0 | L39: 0 | M39: 0 | N39: 0 | O39: 0 | P39: =SUM(D39:O39) -> 0
B40: Other | D40: 0 | E40: 0 | F40: 0 | G40: 0 | H40: 0 | I40: 0 | J40: 0 | K40: 0 | L40: 0 | M40: 0 | N40: 0 | O40: 0 | P40: 0
B41: Other | D41: 0 | E41: 0 | F41: 0 | G41: 0 | H41: 0 | I41: 0 | J41: 0 | K41: 0 | L41: 0 | M41: 0 | N41: 0 | O41: 0 | P41: 0
B42: Other | D42: 0 | E42: 0 | F42: 0 | G42: 0 | H42: 0 | I42: 0 | J42: 0 | K42: 0 | L42: 0 | M42: 0 | N42: 0 | O42: 0 | P42: 0
B43: Other | D43: 0 | E43: 0 | F43: 0 | G43: 0 | H43: 0 | I43: 0 | J43: 0 | K43: 0 | L43: 0 | M43: 0 | N43: 0 | O43: 0 | P43: 0
B44: Other | D44: 0 | E44: 0 | F44: 0 | G44: 0 | H44: 0 | I44: 0 | J44: 0 | K44: 0 | L44: 0 | M44: 0 | N44: 0 | O44: 0 | P44: 0
B45: Other | D45: 0 | E45: 0 | F45: 0 | G45: 0 | H45: 0 | I45: 0 | J45: 0 | K45: 0 | L45: 0 | M45: 0 | N45: 0 | O45: 0 | P45: 0
B46: Sub-Total | D46: =SUM(D20:D45) -> 0 | E46: =SUM(E20:E45) -> 0 | F46: =SUM(F20:F45) -> 0 | G46: 0 | H46: 0 | I46: 0 | J46: 0 | K46: 0 | L46: 0 | M46: 0 | N46: 0 | O46: 0 | P46: =SUM(D46:O46) -> 0
B48: Personal Expenses | C48: Description | D48: Jan | E48: Feb | F48: Mar | G48: Apr | H48: May | I48: Jun | J48: Jul | K48: Aug | L48: Sep | M48: Oct | N48: Nov | O48: Dec | P48: Total
B49: Mortgage / Rent | D49: 0 | E49: 0 | F49: 0 | G49: 0 | H49: 0 | I49: 0 | J49: 0 | K49: 0 | L49: 0 | M49: 0 | N49: 0 | O49: 0 | P49: =SUM(D49:O49) -> 0
B50: Utilities | D50: 0 | E50: 0 | F50: 0 | G50: 0 | H50: 0 | I50: 0 | J50: 0 | K50: 0 | L50: 0 | M50: 0 | N50: 0 | O50: 0 | P50: =SUM(D50:O50) -> 0
B51: Home Insurance | D51: 0 | E51: 0 | F51: 0 | G51: 0 | H51: 0 | I51: 0 | J51: 0 | K51: 0 | L51: 0 | M51: 0 | N51: 0 | O51: 0 | P51: 0
B52: Food | D52: 0 | E52: 0 | F52: 0 | G52: 0 | H52: 0 | I52: 0 | J52: 0 | K52: 0 | L52: 0 | M52: 0 | N52: 0 | O52: 0 | P52: 0
B53: Entertainment | D53: 0 | E53: 0 | F53: 0 | G53: 0 | H53: 0 | I53: 0 | J53: 0 | K53: 0 | L53: 0 | M53: 0 | N53: 0 | O53: 0 | P53: 0
B54: Cable/Internet/Phone (home) | D54: 0 | E54: 0 | F54: 0 | G54: 0 | H54: 0 | I54: 0 | J54: 0 | K54: 0 | L54: 0 | M54: 0 | N54: 0 | O54: 0 | P54: 0
B55: Non Business Cell Phones | D55: 0 | E55: 0 | F55: 0 | G55: 0 | H55: 0 | I55: 0 | J55: 0 | K55: 0 | L55: 0 | M55: 0 | N55: 0 | O55: 0 | P55: 0
B56: Car Payments | D56: 0 | E56: 0 | F56: 0 | G56: 0 | H56: 0 | I56: 0 | J56: 0 | K56: 0 | L56: 0 | M56: 0 | N56: 0 | O56: 0 | P56: 0
B57: Car Insurance | D57: 0 | E57: 0 | F57: 0 | G57: 0 | H57: 0 | I57: 0 | J57: 0 | K57: 0 | L57: 0 | M57: 0 | N57: 0 | O57: 0 | P57: 0
B58: Savings/Investments | D58: 0 | E58: 0 | F58: 0 | G58: 0 | H58: 0 | I58: 0 | J58: 0 | K58: 0 | L58: 0 | M58: 0 | N58: 0 | O58: 0 | P58: 0
B59: Credit Cards | D59: 0 | E59: 0 | F59: 0 | G59: 0 | H59: 0 | I59: 0 | J59: 0 | K59: 0 | L59: 0 | M59: 0 | N59: 0 | O59: 0 | P59: 0
B60: Personal Loans | D60: 0 | E60: 0 | F60: 0 | G60: 0 | H60: 0 | I60: 0 | J60: 0 | K60: 0 | L60: 0 | M60: 0 | N60: 0 | O60: 0 | P60: 0
B61: Laundry | D61: 0 | E61: 0 | F61: 0 | G61: 0 | H61: 0 | I61: 0 | J61: 0 | K61: 0 | L61: 0 | M61: 0 | N61: 0 | O61: 0 | P61: 0
B62: Clothing | D62: 0 | E62: 0 | F62: 0 | G62: 0 | H62: 0 | I62: 0 | J62: 0 | K62: 0 | L62: 0 | M62: 0 | N62: 0 | O62: 0 | P62: 0
B63: Other | D63: 0 | E63: 0 | F63: 0 | G63: 0 | H63: 0 | I63: 0 | J63: 0 | K63: 0 | L63: 0 | M63: 0 | N63: 0 | O63: 0 | P63: 0
B64: Other | D64: 0 | E64: 0 | F64: 0 | G64: 0 | H64: 0 | I64: 0 | J64: 0 | K64: 0 | L64: 0 | M64: 0 | N64: 0 | O64: 0 | P64: 0
B65: Other | D65: 0 | E65: 0 | F65: 0 | G65: 0 | H65: 0 | I65: 0 | J65: 0 | K65: 0 | L65: 0 | M65: 0 | N65: 0 | O65: 0 | P65: 0
B66: Other | D66: 0 | E66: 0 | F66: 0 | G66: 0 | H66: 0 | I66: 0 | J66: 0 | K66: 0 | L66: 0 | M66: 0 | N66: 0 | O66: 0 | P66: 0
B67: Other | D67: 0 | E67: 0 | F67: 0 | G67: 0 | H67: 0 | I67: 0 | J67: 0 | K67: 0 | L67: 0 | M67: 0 | N67: 0 | O67: 0 | P67: 0
B68: Other | D68: 0 | E68: 0 | F68: 0 | G68: 0 | H68: 0 | I68: 0 | J68: 0 | K68: 0 | L68: 0 | M68: 0 | N68: 0 | O68: 0 | P68: 0
B69: Other | D69: 0 | E69: 0 | F69: 0 | G69: 0 | H69: 0 | I69: 0 | J69: 0 | K69: 0 | L69: 0 | M69: 0 | N69: 0 | O69: 0 | P69: 0
B70: Other | D70: 0 | E70: 0 | F70: 0 | G70: 0 | H70: 0 | I70: 0 | J70: 0 | K70: 0 | L70: 0 | M70: 0 | N70: 0 | O70: 0 | P70: 0
B71: Sub-Total | D71: =SUM(D49:D70) -> 0 | E71: 0 | F71: 0 | G71: 0 | H71: 0 | I71: 0 | J71: 0 | K71: 0 | L71: 0 | M71: 0 | N71: 0 | O71: 0 | P71: 0
B72: Agent Total Budget | D72: =SUM(D46,D17,D71) -> 0 | E72: =SUM(E46,E17,E71) -> 0 | F72: 0 | G72: 0 | H72: 0 | I72: 0 | J72: 0 | K72: 0 | L72: 0 | M72: 0 | N72: 0 | O72: 0 | P72: 0
B73: Financing Amount | D73: =IF(AgentType="AAP",'AAP Calculator'!E13,#REF!) ->  | E73: =$D73 ->  | F73: =$D73 ->  | P73: =SUM(D73:O73) -> 
B74: Spousal Income | D74: 0 | E74: 0 | F74: 0 | G74: 0 | H74: 0 | I74: 0 | J74: 0 | K74: 0 | L74: 0 | M74: 0 | N74: 0 | O74: 0 | P74: =SUM(D74:O74) -> 0
B75: Pensions | D75: 0 | E75: 0 | F75: 0 | G75: 0 | H75: 0 | I75: 0 | J75: 0 | K75: 0 | L75: 0 | M75: 0 | N75: 0 | O75: 0 | P75: 0
B76: Other Income | D76: 0 | E76: 0 | F76: 0 | G76: 0 | H76: 0 | I76: 0 | J76: 0 | K76: 0 | L76: 0 | M76: 0 | N76: 0 | O76: 0 | P76: 0
B77: Profit or Loss After Expenses and Projected Income | D77: =D73+D74+D75+D76-D72 ->  | E77: =E73+E74+E75+E76-E72 ->  | P77: =SUM(D77:O77) -> 
D79: Amount of Capital Resources allocated each month
B80: Additional Capital Resources Needed | D80: =IF(D77<0,ABS(D77),0) ->  | P80: =SUM(D80:O80) -> 
B81: Net Cash Flow | D81: =D77+D80 ->  | P81: =SUM(D81:O81) -> 
B83: Initial Balance of Capital Resources | C83: ='Capital Resources'!F19 -> 0 | O83: ='Income Generator'!J150 -> 16JUL18/mlm/wch
B85: Balance of Capital Resources after 12 months | C85: =C83-P80 -> 

Sheet Capital Resources
B2: Additional Capital Resources | H2: =TODAY() -> 2018-08-30
E4: Candidate | F4: ='Income Generator'!$H$2 -> Mr./ Mrs. Agent
B6: In order to be successful as an independent contractor/agent you will need to have sufficient resources to meet both your business expenses and your personal expenses. Your anticipated business and personal expenses will likely result in a negative cash flow during the early years of operating an agency. Below are lists of potential sources of capital that you may wish to explore.
C8: Potential Sources of Capital | F8: $ Amount
C10: 1- | E10: Personal Savings | F10: 0
C11: 2- | E11: Loans from Family Member | F11: 0
C12: 3- | E12: Personal Loans | F12: 0
C13: 4- | E13: Anticipated Tax Return(s) | F13: 0
C14: 5- | E14: Investments | F14: 0
C15: 6- | E15: Other * (e.g. Small Business Association Loans, Family Gifts, etc.) | F15: 0
C16: 7- | E16: Other * | F16: 0
C17: 8- | E17: Other * | F17: 0
E19: TOTAL | F19: =SUM(F10:F17) -> 0
E21: * Describe other:
E23: Notes:
E26: Visit www.sba.gov for details and apply through you local financial institution
H28: ='Income Generator'!J150 -> 16JUL18/mlm/wch

Sheet Leads-Prospects Template
C1: Annual Leads/Prospects Template | K1: =TODAY() -> 2018-08-30
H2: Candidate | J2: ='Income Generator'!H2 -> Mr./ Mrs. Agent
C3: SOURCE | D3: P/L | E3: Life | F3: Ag/Comm | G3: Health | H3: SM&R | I3: Other | J3: Other | K3: TOTAL | M3: Monthly
D4: Leads | E4: Leads | F4: Leads | G4: Leads | H4: Leads | I4: Leads 1 | J4: Leads 2 | M4: Average
C5: Minimum Needed: | D5: 0 | E5: 0 | F5: 0 | G5: 0 | H5: 0 | I5: 0 | J5: 0 | K5: =SUM(D5:J5) -> 0 | M5: =K5/12 -> 0
B6: 1- | C6: Internet/Social Media | D6: 0 | E6: 0 | F6: 0 | G6: 0 | H6: 0 | I6: 0 | J6: 0 | K6: =SUM(D6:J6) -> 0 | M6: =K6/12 -> 0
B7: 2- | C7: Family/Friends | D7: 0 | E7: 0 | F7: 0 | G7: 0 | H7: 0 | I7: 0 | J7: 0 | K7: 0 | M7: 0
B8: 3- | C8: Purchased Leads | D8: 0 | E8: 0 | F8: 0 | G8: 0 | H8: 0 | I8: 0 | J8: 0 | K8: 0 | M8: 0
B9: 4- | C9: Cold Calls Personal Lines | D9: 0 | E9: 0 | F9: 0 | G9: 0 | H9: 0 | I9: 0 | J9: 0 | K9: 0 | M9: 0
B10: 5- | C10: Cold Calls Business | D10: 0 | E10: 0 | F10: 0 | G10: 0 | H10: 0 | I10: 0 | J10: 0 | K10: 0 | M10: 0
B11: 6- | C11: Referrals | D11: 0 | E11: 0 | F11: 0 | G11: 0 | H11: 0 | I11: 0 | J11: 0 | K11: 0 | M11: 0
B12: 7- | C12: Associations | D12: 0 | E12: 0 | F12: 0 | G12: 0 | H12: 0 | I12: 0 | J12: 0 | K12: 0 | M12: 0
B13: 8- | C13: Real Estate | D13: 0 | E13: 0 | F13: 0 | G13: 0 | H13: 0 | I13: 0 | J13: 0 | K13: 0 | M13: 0
B14: 9- | C14: Other Source 1 | D14: 0 | E14: 0 | F14: 0 | G14: 0 | H14: 0 | I14: 0 | J14: 0 | K14: 0 | M14: 0
B15: 10- | C15: Other Source 2 | D15: 0 | E15: 0 | F15: 0 | G15: 0 | H15: 0 | I15: 0 | J15: 0 | K15: 0 | M15: 0
B16: 11- | C16: Other Source 3 | D16: 0 | E16: 0 | F16: 0 | G16: 0 | H16: 0 | I16: 0 | J16: 0 | K16: 0 | M16: 0
B17: 12- | C17: Other Source 4 | D17: 0 | E17: 0 | F17: 0 | G17: 0 | H17: 0 | I17: 0 | J17: 0 | K17: 0 | M17: 0
C18: Minimum Expectations | D18: =D5 -> 0 | E18: 0 | F18: 0 | G18: 0 | H18: 0 | I18: 0 | J18: 0 | K18: 0 | M18: 0
C19: TOTAL | D19: =SUM(D6:D17) -> 0 | E19: 0 | F19: 0 | G19: 0 | H19: 0 | I19: 0 | J19: 0 | K19: 0 | M19: 0
C20: Differences | D20: =D19-D18 -> 0 | E20: =E19-E18 -> 0 | F20: 0 | G20: 0 | H20: 0 | I20: 0 | J20: 0 | K20: 0
J22: ='Income Generator'!J150 -> 16JUL18/mlm/wch
C23: Plan Details
C24: Source | D24: Cost | E24: Name of Vendor

Sheet AAP Calculator (hidden)
B2: AMERICAN NATIONAL - Agency Plan
E3: =MacroDefaults!B1 -> Mr./ Mrs. Agent
E4: I. Agent Allowance Program (AAP) Calculator
D6: Input Cells | E6: Monthly Advance | F6: Annual Advance
B8: *P&C Annual Advance Level | D8: 8700 | E8: =D8/12 -> 725 | F8: =D8 -> 8700
B9: **Life Annual Advance Level | D9: 20000 | E9: =D9/12 -> 1666.666667 | F9: =D9 -> 20000
B11: Additional Bonus | D11: 0 | E11: =D11/12 -> 0 | F11: =D11 -> 0
B13: AGENT ADVANCE | E13: =SUM(E8:E11) -> 2391.666667 | F13: =E13*12 -> 28700 | G13: /yr.
D15: Month | E15: Cumulative P&C Validation | F15: Monthly P&C Validation | G15: Cumulative Life Validation | H15: Monthly Life Validation
B16: *Available P&C Validation Schedules are: | D16: 1 | E16: =VLOOKUP(D16,'AAA-AAP Variables'!$A$15:$G$39,MATCH($D$8,'AAA-AAP Variables'!$B$15:$G$15,0)+1,FALSE) -> 100 | F16: =E16 -> 100 | G16: =VLOOKUP(D16,'AAA-AAP Variables'!$H$15:$L$51,MATCH($D$9,'AAA-AAP Variables'!$I$15:$L$15,0)+1,FALSE) -> 150 | H16: =G16 -> 150
B17: $8,700 - $12,500 - $17,500 - $20,000 - $22,000 - $25,000 | D17: 2 | E17: =VLOOKUP(D17,'AAA-AAP Variables'!$A$15:$G$39,MATCH($D$8,'AAA-AAP Variables'!$B$15:$G$15,0)+1,FALSE) -> 200 | F17: =E17-E16 -> 100 | G17: =VLOOKUP(D17,'AAA-AAP Variables'!$H$15:$L$51,MATCH($D$9,'AAA-AAP Variables'!$I$15:$L$15,0)+1,FALSE) -> 300 | H17: =G17-G16 -> 150
D18: 3 | E18: =VLOOKUP(D18,'AAA-AAP Variables'!$A$15:$G$39,MATCH($D$8,'AAA-AAP Variables'!$B$15:$G$15,0)+1,FALSE) -> 350 | F18: 150 | G18: =VLOOKUP(D18,'AAA-AAP Variables'!$H$15:$L$51,MATCH($D$9,'AAA-AAP Variables'!$I$15:$L$15,0)+1,FALSE) -> 450 | H18: 150
B19: **Available Life Validation Schedules are: | D19: 4 | E19: =VLOOKUP(D19,'AAA-AAP Variables'!$A$15:$G$39,MATCH($D$8,'AAA-AAP Variables'!$B$15:$G$15,0)+1,FALSE) -> 700 | F19: 350 | G19: =VLOOKUP(D19,'AAA-AAP Variables'!$H$15:$L$51,MATCH($D$9,'AAA-AAP Variables'!$I$15:$L$15,0)+1,FALSE) -> 600 | H19: 150
B20: $17,500 - $20,000 - $22,000 - $25,000 | D20: 5 | E20: =VLOOKUP(D20,'AAA-AAP Variables'!$A$15:$G$39,MATCH($D$8,'AAA-AAP Variables'!$B$15:$G$15,0)+1,FALSE) -> 1050 | F20: 350 | G20: =VLOOKUP(D20,'AAA-AAP Variables'!$H$15:$L$51,MATCH($D$9,'AAA-AAP Variables'!$I$15:$L$15,0)+1,FALSE) -> 900 | H20: 300
D21: 6 | E21: =VLOOKUP(D21,'AAA-AAP Variables'!$A$15:$G$39,MATCH($D$8,'AAA-AAP Variables'!$B$15:$G$15,0)+1,FALSE) -> 1400 | F21: 350 | G21: =VLOOKUP(D21,'AAA-AAP Variables'!$H$15:$L$51,MATCH($D$9,'AAA-AAP Variables'!$I$15:$L$15,0)+1,FALSE) -> 1300 | H21: 400
D22: 7 | E22: =VLOOKUP(D22,'AAA-AAP Variables'!$A$15:$G$39,MATCH($D$8,'AAA-AAP Variables'!$B$15:$G$15,0)+1,FALSE) -> 1750 | F22: 350 | G22: =VLOOKUP(D22,'AAA-AAP Variables'!$H$15:$L$51,MATCH($D$9,'AAA-AAP Variables'!$I$15:$L$15,0)+1,FALSE) -> 1700 | H22: 400
D23: 8 | E23: =VLOOKUP(D23,'AAA-AAP Variables'!$A$15:$G$39,MATCH($D$8,'AAA-AAP Variables'!$B$15:$G$15,0)+1,FALSE) -> 2100 | F23: 350 | G23: =VLOOKUP(D23,'AAA-AAP Variables'!$H$15:$L$51,MATCH($D$9,'AAA-AAP Variables'!$I$15:$L$15,0)+1,FALSE) -> 2150 | H23: 450
D24: 9 | E24: =VLOOKUP(D24,'AAA-AAP Variables'!$A$15:$G$39,MATCH($D$8,'AAA-AAP Variables'!$B$15:$G$15,0)+1,FALSE) -> 2450 | F24: 350 | G24: =VLOOKUP(D24,'AAA-AAP Variables'!$H$15:$L$51,MATCH($D$9,'AAA-AAP Variables'!$I$15:$L$15,0)+1,FALSE) -> 2550 | H24: 400
D25: 10 | E25: =VLOOKUP(D25,'AAA-AAP Variables'!$A$15:$G$39,MATCH($D$8,'AAA-AAP Variables'!$B$15:$G$15,0)+1,FALSE) -> 2800 | F25: 350 | G25: =VLOOKUP(D25,'AAA-AAP Variables'!$H$15:$L$51,MATCH($D$9,'AAA-AAP Variables'!$I$15:$L$15,0)+1,FALSE) -> 3000 | H25: 450
D26: 11 | E26: =VLOOKUP(D26,'AAA-AAP Variables'!$A$15:$G$39,MATCH($D$8,'AAA-AAP Variables'!$B$15:$G$15,0)+1,FALSE) -> 3150 | F26: 350 | G26: =VLOOKUP(D26,'AAA-AAP Variables'!$H$15:$L$51,MATCH($D$9,'AAA-AAP Variables'!$I$15:$L$15,0)+1,FALSE) -> 3500 | H26: 500
B27: Disclaimer: The compensation examples are based upon hypothetical production levels and there is absolutely no assurance that I will meet those production levels. The compensation examples do not reflect actual compensation results and are not guarantees of future results. | D27: 12 | E27: =VLOOKUP(D27,'AAA-AAP Variables'!$A$15:$G$39,MATCH($D$8,'AAA-AAP Variables'!$B$15:$G$15,0)+1,FALSE) -> 3500 | F27: 350 | G27: =VLOOKUP(D27,'AAA-AAP Variables'!$H$15:$L$51,MATCH($D$9,'AAA-AAP Variables'!$I$15:$L$15,0)+1,FALSE) -> 4000 | H27: 500
D28: 13 | E28: =VLOOKUP(D28,'AAA-AAP Variables'!$A$15:$G$39,MATCH($D$8,'AAA-AAP Variables'!$B$15:$G$15,0)+1,FALSE) -> 4000 | F28: 500 | G28: =VLOOKUP(D28,'AAA-AAP Variables'!$H$15:$L$51,MATCH($D$9,'AAA-AAP Variables'!$I$15:$L$15,0)+1,FALSE) -> 4600 | H28: 600
D29: 14 | E29: =VLOOKUP(D29,'AAA-AAP Variables'!$A$15:$G$39,MATCH($D$8,'AAA-AAP Variables'!$B$15:$G$15,0)+1,FALSE) -> 4500 | F29: 500 | G29: =VLOOKUP(D29,'AAA-AAP Variables'!$H$15:$L$51,MATCH($D$9,'AAA-AAP Variables'!$I$15:$L$15,0)+1,FALSE) -> 5250 | H29: 650
D30: 15 | E30: =VLOOKUP(D30,'AAA-AAP Variables'!$A$15:$G$39,MATCH($D$8,'AAA-AAP Variables'!$B$15:$G$15,0)+1,FALSE) -> 5000 | F30: 500 | G30: =VLOOKUP(D30,'AAA-AAP Variables'!$H$15:$L$51,MATCH($D$9,'AAA-AAP Variables'!$I$15:$L$15,0)+1,FALSE) -> 5900 | H30: 650
D31: 16 | E31: =VLOOKUP(D31,'AAA-AAP Variables'!$A$15:$G$39,MATCH($D$8,'AAA-AAP Variables'!$B$15:$G$15,0)+1,FALSE) -> 5500 | F31: 500 | G31: =VLOOKUP(D31,'AAA-AAP Variables'!$H$15:$L$51,MATCH($D$9,'AAA-AAP Variables'!$I$15:$L$15,0)+1,FALSE) -> 6600 | H31: 700
D32: 17 | E32: =VLOOKUP(D32,'AAA-AAP Variables'!$A$15:$G$39,MATCH($D$8,'AAA-AAP Variables'!$B$15:$G$15,0)+1,FALSE) -> 6000 | F32: 500 | G32: =VLOOKUP(D32,'AAA-AAP Variables'!$H$15:$L$51,MATCH($D$9,'AAA-AAP Variables'!$I$15:$L$15,0)+1,FALSE) -> 7300 | H32: 700
D33: 18 | E33: =VLOOKUP(D33,'AAA-AAP Variables'!$A$15:$G$39,MATCH($D$8,'AAA-AAP Variables'!$B$15:$G$15,0)+1,FALSE) -> 6500 | F33: 500 | G33: =VLOOKUP(D33,'AAA-AAP Variables'!$H$15:$L$51,MATCH($D$9,'AAA-AAP Variables'!$I$15:$L$15,0)+1,FALSE) -> 8050 | H33: 750
D34: 19 | E34: =VLOOKUP(D34,'AAA-AAP Variables'!$A$15:$G$39,MATCH($D$8,'AAA-AAP Variables'!$B$15:$G$15,0)+1,FALSE) -> 7000 | F34: 500 | G34: =VLOOKUP(D34,'AAA-AAP Variables'!$H$15:$L$51,MATCH($D$9,'AAA-AAP Variables'!$I$15:$L$15,0)+1,FALSE) -> 8800 | H34: 750
D35: 20 | E35: =VLOOKUP(D35,'AAA-AAP Variables'!$A$15:$G$39,MATCH($D$8,'AAA-AAP Variables'!$B$15:$G$15,0)+1,FALSE) -> 7500 | F35: 500 | G35: =VLOOKUP(D35,'AAA-AAP Variables'!$H$15:$L$51,MATCH($D$9,'AAA-AAP Variables'!$I$15:$L$15,0)+1,FALSE) -> 9550 | H35: 750
D36: 21 | E36: =VLOOKUP(D36,'AAA-AAP Variables'!$A$15:$G$39,MATCH($D$8,'AAA-AAP Variables'!$B$15:$G$15,0)+1,FALSE) -> 8000 | F36: 500 | G36: =VLOOKUP(D36,'AAA-AAP Variables'!$H$15:$L$51,MATCH($D$9,'AAA-AAP Variables'!$I$15:$L$15,0)+1,FALSE) -> 10300 | H36: 750
D37: 22 | E37: =VLOOKUP(D37,'AAA-AAP Variables'!$A$15:$G$39,MATCH($D$8,'AAA-AAP Variables'!$B$15:$G$15,0)+1,FALSE) -> 8500 | F37: 500 | G37: =VLOOKUP(D37,'AAA-AAP Variables'!$H$15:$L$51,MATCH($D$9,'AAA-AAP Variables'!$I$15:$L$15,0)+1,FALSE) -> 11100 | H37: 800
D38: 23 | E38: =VLOOKUP(D38,'AAA-AAP Variables'!$A$15:$G$39,MATCH($D$8,'AAA-AAP Variables'!$B$15:$G$15,0)+1,FALSE) -> 9000 | F38: 500 | G38: =VLOOKUP(D38,'AAA-AAP Variables'!$H$15:$L$51,MATCH($D$9,'AAA-AAP Variables'!$I$15:$L$15,0)+1,FALSE) -> 12000 | H38: 900
D39: 24 | E39: =VLOOKUP(D39,'AAA-AAP Variables'!$A$15:$G$39,MATCH($D$8,'AAA-AAP Variables'!$B$15:$G$15,0)+1,FALSE) -> 9500 | F39: 500 | G39: =VLOOKUP(D39,'AAA-AAP Variables'!$H$15:$L$51,MATCH($D$9,'AAA-AAP Variables'!$I$15:$L$15,0)+1,FALSE) -> 13000 | H39: 1000
D40: 25 | G40: =VLOOKUP(D40,'AAA-AAP Variables'!$H$15:$L$51,MATCH($D$9,'AAA-AAP Variables'!$I$15:$L$15,0)+1,FALSE) -> 14000 | H40: 1000
D41: 26 | G41: =VLOOKUP(D41,'AAA-AAP Variables'!$H$15:$L$51,MATCH($D$9,'AAA-AAP Variables'!$I$15:$L$15,0)+1,FALSE) -> 15000 | H41: 1000
D42: 27 | G42: =VLOOKUP(D42,'AAA-AAP Variables'!$H$15:$L$51,MATCH($D$9,'AAA-AAP Variables'!$I$15:$L$15,0)+1,FALSE) -> 16100 | H42: 1100
D43: 28 | G43: =VLOOKUP(D43,'AAA-AAP Variables'!$H$15:$L$51,MATCH($D$9,'AAA-AAP Variables'!$I$15:$L$15,0)+1,FALSE) -> 17200 | H43: 1100
D44: 29 | G44: =VLOOKUP(D44,'AAA-AAP Variables'!$H$15:$L$51,MATCH($D$9,'AAA-AAP Variables'!$I$15:$L$15,0)+1,FALSE) -> 18300 | H44: 1100
D45: 30 | G45: =VLOOKUP(D45,'AAA-AAP Variables'!$H$15:$L$51,MATCH($D$9,'AAA-AAP Variables'!$I$15:$L$15,0)+1,FALSE) -> 19400 | H45: 1100
D46: 31 | G46: =VLOOKUP(D46,'AAA-AAP Variables'!$H$15:$L$51,MATCH($D$9,'AAA-AAP Variables'!$I$15:$L$15,0)+1,FALSE) -> 20500 | H46: 1100
D47: 32 | G47: =VLOOKUP(D47,'AAA-AAP Variables'!$H$15:$L$51,MATCH($D$9,'AAA-AAP Variables'!$I$15:$L$15,0)+1,FALSE) -> 21700 | H47: 1200
D48: 33 | G48: =VLOOKUP(D48,'AAA-AAP Variables'!$H$15:$L$51,MATCH($D$9,'AAA-AAP Variables'!$I$15:$L$15,0)+1,FALSE) -> 22900 | H48: 1200
D49: 34 | G49: =VLOOKUP(D49,'AAA-AAP Variables'!$H$15:$L$51,MATCH($D$9,'AAA-AAP Variables'!$I$15:$L$15,0)+1,FALSE) -> 24200 | H49: 1300
D50: 35 | G50: =VLOOKUP(D50,'AAA-AAP Variables'!$H$15:$L$51,MATCH($D$9,'AAA-AAP Variables'!$I$15:$L$15,0)+1,FALSE) -> 25600 | H50: 1400
D51: 36 | G51: =VLOOKUP(D51,'AAA-AAP Variables'!$H$15:$L$51,MATCH($D$9,'AAA-AAP Variables'!$I$15:$L$15,0)+1,FALSE) -> 27000 | H51: 1400

Sheet AAA-AAP Variables (hidden)
A1: P&C Income Levels | B1: 0 | C1: 8700 | D1: 12500 | E1: 17500 | F1: 20000 | G1: 22000 | H1: 25000 | N1: Commissions | O1: Year | P1: AAA | Q1: AAP
A2: Life Income Levels | B2: 0 | C2: 17500 | D2: 20000 | E2: 22000 | F2: 25000 | N2: Auto | O2: 1 | P2: 0.1 | Q2: 0.08
O3: 2 | P3: 0.1 | Q3: 0.08
A4: Honor Roll Bonus | B4: 20 | C4: 30 | D4: 40 | E4: 50 | O4: 3 | P4: 0.1 | Q4: 0.08
A5: Life Production | B5: 2000 | C5: 3000 | D5: 4000 | E5: 5000 | O5: 4 | P5: 0.1 | Q5: 0.08
A6: Bonus Amount | B6: 1000 | C6: 1500 | D6: 2000 | E6: 2500 | O6: 5 | P6: 0.1 | Q6: 0.08
N7: Homeowners | O7: 1 | P7: 0.12 | Q7: 0.15
B8: qualifying rule: | C8: option 1 | D8: option 2 | O8: 2 | P8: 0.12 | Q8: 0.15
B9: =#REF! ->  | C9: =IFERROR(HLOOKUP(B9,B4:E6,3),0) -> 0 | D9: =IFERROR(HLOOKUP(ROUNDDOWN(B10/200,0)+B9,B4:E6,3),0) -> 0 | E9: bonus lookup based on p&c | O9: 3 | P9: 0.12 | Q9: 0.15
B10: =#REF! ->  | C10: =IFERROR(HLOOKUP(B10,B5:E6,2),0) -> 0 | D10: =C10 -> 0 | E10: life production in excess of target | O10: 4 | P10: 0.12 | Q10: 0.18
C11: =MIN(C9:C10) -> 0 | D11: =MIN(D9:D10) -> 0 | E11: CALCULATED Bonus | O11: 5 | P11: 0.12 | Q11: 0.18
N12: Umbrella | O12: 1 | P12: 0.105 | Q12: 0.09
O13: 2 | P13: 0.105 | Q13: 0.09
O14: 3 | P14: 0.105 | Q14: 0.09
A15: P&C | B15: 8700 | C15: 12500 | D15: 17500 | E15: 20000 | F15: 22000 | G15: 25000 | H15: Life | I15: 17500 | J15: 20000 | K15: 22000 | L15: 25000 | O15: 4 | P15: 0.105 | Q15: 0.09
A16: 1 | B16: 100 | C16: 150 | D16: 200 | E16: 250 | F16: 300 | G16: 300 | H16: 1 | I16: 100 | J16: 150 | K16: 150 | L16: 200 | O16: 5 | P16: 0.105 | Q16: 0.09
A17: 2 | B17: 200 | C17: 300 | D17: 450 | E17: 500 | F17: 600 | G17: 650 | H17: 2 | I17: 250 | J17: 300 | K17: 350 | L17: 450 | N17: Business Owner Policy | O17: 1 | P17: 0.12 | Q17: 0.15
A18: 3 | B18: 350 | C18: 500 | D18: 700 | E18: 800 | F18: 900 | G18: 1000 | H18: 3 | I18: 400 | J18: 450 | K18: 550 | L18: 650 | O18: 2 | P18: 0.12 | Q18: 0.15
A19: 4 | B19: 700 | C19: 1000 | D19: 1400 | E19: 1600 | F19: 1800 | G19: 2000 | H19: 4 | I19: 525 | J19: 600 | K19: 750 | L19: 900 | O19: 3 | P19: 0.12 | Q19: 0.15
A20: 5 | B20: 1050 | C20: 1500 | D20: 2100 | E20: 2400 | F20: 2700 | G20: 3000 | H20: 5 | I20: 785 | J20: 900 | K20: 1125 | L20: 1350 | O20: 4 | P20: 0.12 | Q20: 0.18
A21: 6 | B21: 1400 | C21: 2000 | D21: 2800 | E21: 3200 | F21: 3600 | G21: 4000 | H21: 6 | I21: 1135 | J21: 1300 | K21: 1625 | L21: 1950 | O21: 5 | P21: 0.12 | Q21: 0.18
A22: 7 | B22: 1750 | C22: 2500 | D22: 3500 | E22: 4000 | F22: 4500 | G22: 5000 | H22: 7 | I22: 1485 | J22: 1700 | K22: 2125 | L22: 2550 | N22: Business Auto | O22: 1 | P22: 0.1 | Q22: 0.08
A23: 8 | B23: 2100 | C23: 3000 | D23: 4200 | E23: 4800 | F23: 5400 | G23: 6000 | H23: 8 | I23: 1835 | J23: 2150 | K23: 2655 | L23: 3190 | O23: 2 | P23: 0.1 | Q23: 0.08
A24: 9 | B24: 2450 | C24: 3500 | D24: 4900 | E24: 5600 | F24: 6300 | G24: 7000 | H24: 9 | I24: 2185 | J24: 2550 | K24: 3185 | L24: 3830 | O24: 3 | P24: 0.1 | Q24: 0.08
A25: 10 | B25: 2800 | C25: 4000 | D25: 5600 | E25: 6400 | F25: 7200 | G25: 8000 | H25: 10 | I25: 2580 | J25: 3000 | K25: 3750 | L25: 4500 | O25: 4 | P25: 0.1 | Q25: 0.08
A26: 11 | B26: 3150 | C26: 4500 | D26: 6300 | E26: 7200 | F26: 8100 | G26: 9000 | H26: 11 | I26: 3040 | J26: 3500 | K26: 4375 | L26: 5250 | O26: 5 | P26: 0.1 | Q26: 0.08
A27: 12 | B27: 3500 | C27: 5000 | D27: 7000 | E27: 8000 | F27: 9000 | G27: 10000 | H27: 12 | I27: 3500 | J27: 4000 | K27: 5000 | L27: 6000 | N27: Special Farm Package | O27: 1 | P27: 0.12 | Q27: 0.15
A28: 13 | B28: 4000 | C28: 5750 | D28: 8000 | E28: 9200 | F28: 10400 | G28: 11500 | H28: 13 | I28: 4025 | J28: 4600 | K28: 5690 | L28: 6830 | O28: 2 | P28: 0.12 | Q28: 0.15
A29: 14 | B29: 4500 | C29: 6500 | D29: 9000 | E29: 10400 | F29: 11800 | G29: 13000 | H29: 14 | I29: 4595 | J29: 5250 | K29: 6440 | L29: 7730 | O29: 3 | P29: 0.12 | Q29: 0.15
A30: 15 | B30: 5000 | C30: 7250 | D30: 10000 | E30: 11600 | F30: 13200 | G30: 14500 | H30: 15 | I30: 5165 | J30: 5900 | K30: 7190 | L30: 8630 | O30: 4 | P30: 0.12 | Q30: 0.18
A31: 16 | B31: 5500 | C31: 8000 | D31: 11000 | E31: 12800 | F31: 14600 | G31: 16000 | H31: 16 | I31: 5780 | J31: 6600 | K31: 7995 | L31: 9590 | O31: 5 | P31: 0.12 | Q31: 0.18
A32: 17 | B32: 6000 | C32: 8750 | D32: 12000 | E32: 14000 | F32: 16000 | G32: 17500 | H32: 17 | I32: 6410 | J32: 7300 | K32: 8800 | L32: 10550 | N32: Workers Comp | O32: 1 | P32: 0.05 | Q32: 0.05
A33: 18 | B33: 6500 | C33: 9500 | D33: 13000 | E33: 15200 | F33: 17400 | G33: 19000 | H33: 18 | I33: 7060 | J33: 8050 | K33: 9665 | L33: 11590 | O33: 2 | P33: 0.05 | Q33: 0.05
A34: 19 | B34: 7000 | C34: 10250 | D34: 14000 | E34: 16400 | F34: 18800 | G34: 20500 | H34: 19 | I34: 7710 | J34: 8800 | K34: 10530 | L34: 12630 | O34: 3 | P34: 0.05 | Q34: 0.05
A35: 20 | B35: 7500 | C35: 11000 | D35: 15000 | E35: 17600 | F35: 20200 | G35: 22000 | H35: 20 | I35: 8360 | J35: 9550 | K35: 11395 | L35: 13670 | O35: 4 | P35: 0.05 | Q35: 0.05
A36: 21 | B36: 8000 | C36: 11750 | D36: 16000 | E36: 18800 | F36: 21600 | G36: 23500 | H36: 21 | I36: 9010 | J36: 10300 | K36: 12260 | L36: 14710 | O36: 5 | P36: 0.05 | Q36: 0.05
A37: 22 | B37: 8500 | C37: 12500 | D37: 17000 | E37: 20000 | F37: 23000 | G37: 25000 | H37: 22 | I37: 9710 | J37: 11100 | K37: 13160 | L37: 15790 | N37: Commercial Package Policy | O37: 1 | P37: 0.12 | Q37: 0.15
A38: 23 | B38: 9000 | C38: 13250 | D38: 18000 | E38: 21200 | F38: 24400 | G38: 26500 | H38: 23 | I38: 10500 | J38: 12000 | K38: 14060 | L38: 16870 | O38: 2 | P38: 0.12 | Q38: 0.15
A39: 24 | B39: 9500 | C39: 14000 | D39: 19000 | E39: 22400 | F39: 25800 | G39: 28000 | H39: 24 | I39: 11375 | J39: 13000 | K39: 15000 | L39: 18000 | O39: 3 | P39: 0.12 | Q39: 0.15
H40: 25 | I40: 12250 | J40: 14000 | K40: 16000 | L40: 19200 | O40: 4 | P40: 0.12 | Q40: 0.18
H41: 26 | I41: 13125 | J41: 15000 | K41: 17150 | L41: 20580 | O41: 5 | P41: 0.12 | Q41: 0.18
H42: 27 | I42: 14085 | J42: 16100 | K42: 18300 | L42: 21960 | N42: Commercial/Farm Umbrella | O42: 1 | P42: 0.105 | Q42: 0.09
H43: 28 | I43: 15045 | J43: 17200 | K43: 19500 | L43: 23400 | O43: 2 | P43: 0.105 | Q43: 0.09
H44: 29 | I44: 16005 | J44: 18300 | K44: 20700 | L44: 24840 | O44: 3 | P44: 0.105 | Q44: 0.09
H45: 30 | I45: 16970 | J45: 19400 | K45: 21900 | L45: 26340 | O45: 4 | P45: 0.105 | Q45: 0.09
H46: 31 | I46: 17935 | J46: 20500 | K46: 23150 | L46: 27840 | O46: 5 | P46: 0.105 | Q46: 0.09
H47: 32 | I47: 18985 | J47: 21700 | K47: 24400 | L47: 29340 | N47: Term Life | O47: 1 | P47: 0.6 | Q47: 0.5
H48: 33 | I48: 20035 | J48: 22900 | K48: 25700 | L48: 30940 | O48: 2 | P48: 0 | Q48: 0.104
H49: 34 | I49: 21175 | J49: 24200 | K49: 27000 | L49: 32600 | O49: 3 | P49: 0 | Q49: 0.078
H50: 35 | I50: 22400 | J50: 25600 | K50: 28400 | L50: 34280 | O50: 4 | P50: 0 | Q50: 0.052
H51: 36 | I51: 23625 | J51: 27000 | K51: 30000 | L51: 36000 | O51: 5 | P51: 0 | Q51: 0.052
N52: Universal Life | O52: 1 | P52: 0.6 | Q52: 0.45
O53: 2 | P53: 0.024 | Q53: 0.0715
O54: 3 | P54: 0.024 | Q54: 0.0715
O55: 4 | P55: 0.024 | Q55: 0.0715
O56: 5 | P56: 0.024 | Q56: 0.0715
N57: Whole Life | O57: 1 | P57: 0.6 | Q57: 0.55
O58: 2 | P58: 0.026 | Q58: 0.104
O59: 3 | P59: 0.026 | Q59: 0.104
O60: 4 | P60: 0.026 | Q60: 0.052
O61: 5 | P61: 0.026 | Q61: 0.052
N62: Fixed Annuity | O62: 1 | P62: 0.05 | Q62: 0.03
O63: 2 | P63: 0 | Q63: 0
O64: 3 | P64: 0 | Q64: 0
O65: 4 | P65: 0 | Q65: 0
O66: 5 | P66: 0 | Q66: 0
N67: Pension | O67: 1 | P67: 0.0415 | Q67: 0.0415
O68: 2 | P68: 0.0415 | Q68: 0.0415
O69: 3 | P69: 0.0415 | Q69: 0.0415
O70: 4 | P70: 0.0415 | Q70: 0.0415
O71: 5 | P71: 0.0415 | Q71: 0.0415
N72: Disability | O72: 1 | P72: 0.5 | Q72: 0.4
O73: 2 | P73: 0.1 | Q73: 0.075
O74: 3 | P74: 0.1 | Q74: 0.075
O75: 4 | P75: 0.1 | Q75: 0.075
O76: 5 | P76: 0.1 | Q76: 0.075
N77: Long Term Care | O77: 1 | P77: 0.65 | Q77: 0.65
O78: 2 | P78: 0.08 | Q78: 0.08
O79: 3 | P79: 0.08 | Q79: 0.08
O80: 4 | P80: 0.08 | Q80: 0.08
O81: 5 | P81: 0.08 | Q81: 0.08
N82: Health | O82: 1 | P82: 0.09 | Q82: 0.09
O83: 2 | P83: 0.04 | Q83: 0.04
O84: 3 | P84: 0.04 | Q84: 0.04
O85: 4 | P85: 0.04 | Q85: 0.04
O86: 5 | P86: 0.04 | Q86: 0.04

Sheet Bonus (hidden)
A1: Honor Roll Bonus | B1: 20 | C1: 30 | D1: 40 | E1: 50
A2: Life Production | B2: 2000 | C2: 3000 | D2: 4000 | E2: 5000
A3: Bonus Amount | B3: 1000 | C3: 1500 | D3: 2000 | E3: 2500
A5: Option 1 | H5: Option 2
A7: no growth, no attrition | H7: no growth, no attrition
C9: bonus using | E9: bonus using | J9: bonus using | L9: bonus using
A10: Year | B10: P&C units | C10: P&C units | D10: life sales | E10: life sales | F10: HRB | H10: Year | I10: P&C units | J10: P&C units | K10: life sales | L10: life sales | M10: HRB
A11: 1 | B11: =#REF! ->  | C11: =IFERROR(HLOOKUP(B11,$B$1:$E$3,3),0) -> 0 | D11: =#REF! ->  | E11: =IFERROR(HLOOKUP(D11,$B$2:$E$3,2),0) -> 0 | F11: =MIN(C11,E11) -> 0 | H11: 1 | I11: =B11 ->  | J11: =IFERROR(HLOOKUP(I11+ROUNDDOWN(K11/200,0),$B$1:$E$3,3),0) -> 0 | K11: =D11 ->  | L11: =IFERROR(HLOOKUP(K11,$B$2:$E$3,2),0) -> 0 | M11: =MIN(J11,L11) -> 0
A12: 2 | B12: =B11 ->  | C12: =IFERROR(HLOOKUP(B12,$B$1:$E$3,3),0) -> 0 | D12: =D11 ->  | E12: =IFERROR(HLOOKUP(D12,$B$2:$E$3,2),0) -> 0 | F12: =MIN(C12,E12) -> 0 | H12: 2 | I12: =B12 ->  | J12: =IFERROR(HLOOKUP(I12+ROUNDDOWN(K12/200,0),$B$1:$E$3,3),0) -> 0 | K12: =D12 ->  | L12: =IFERROR(HLOOKUP(K12,$B$2:$E$3,2),0) -> 0 | M12: =MIN(J12,L12) -> 0
A13: 3 | B13: =B11 ->  | C13: =IFERROR(HLOOKUP(B13,$B$1:$E$3,3),0) -> 0 | D13: =D11 ->  | E13: =IFERROR(HLOOKUP(D13,$B$2:$E$3,2),0) -> 0 | F13: =MIN(C13,E13) -> 0 | H13: 3 | I13: =B13 ->  | J13: =IFERROR(HLOOKUP(I13+ROUNDDOWN(K13/200,0),$B$1:$E$3,3),0) -> 0 | K13: =D13 ->  | L13: =IFERROR(HLOOKUP(K13,$B$2:$E$3,2),0) -> 0 | M13: =MIN(J13,L13) -> 0
A15: no growth, with attrition | H15: no growth, with attrition
C17: bonus using | E17: bonus using | J17: bonus using | L17: bonus using
A18: Year | B18: P&C units | C18: P&C units | D18: life sales | E18: life sales | F18: HRB | H18: Year | I18: P&C units | J18: P&C units | K18: life sales | L18: life sales | M18: HRB
A19: 1 | B19: =B11*12 ->  | C19: =IFERROR(HLOOKUP((B19/12),$B$1:$E$3,3),0) -> 0 | D19: =D11*12 ->  | E19: =IFERROR(HLOOKUP((D19/12),$B$2:$E$3,2),0) -> 0 | F19: =MIN(C19,E19) -> 0 | H19: 1 | I19: =B19 ->  | J19: =IFERROR(HLOOKUP((I19/12)+ROUNDDOWN((K19/12)/200,0),$B$1:$E$3,3),0) -> 0 | K19: =D19 ->  | L19: =IFERROR(HLOOKUP((K19/12),$B$2:$E$3,2),0) -> 0 | M19: =MIN(J19,L19) -> 0
A20: 2 | B20: =(1+(1-#REF!))*Bonus!B19 ->  | C20: =IFERROR(HLOOKUP(((B20-B19)/12),$B$1:$E$3,3),0) -> 0 | D20: =(1+(1-#REF!))*Bonus!D19 ->  | E20: =IFERROR(HLOOKUP(((D20-D19)/12),$B$2:$E$3,2),0) -> 0 | F20: 0 | H20: 2 | I20: =B20 ->  | J20: =IFERROR(HLOOKUP(((I20-I19)/12)+ROUNDDOWN(((K20-K19)/12)/200,0),$B$1:$E$3,3),0) -> 0 | K20: =D20 ->  | L20: =IFERROR(HLOOKUP(((K20-K19)/12),$B$2:$E$3,2),0) -> 0 | M20: 0
A21: 3 | B21: =(1+(1-#REF!)+(1-#REF!)^2)*Bonus!B19 ->  | C21: =IFERROR(HLOOKUP(((B21-B20)/12),$B$1:$E$3,3),0) -> 0 | D21: =(1+(1-#REF!)+(1-#REF!)^2)*Bonus!D19 ->  | E21: =IFERROR(HLOOKUP(((D21-D20)/12),$B$2:$E$3,2),0) -> 0 | F21: 0 | H21: 3 | I21: =B21 ->  | J21: =IFERROR(HLOOKUP(((I21-I20)/12)+ROUNDDOWN(((K21-K20)/12)/200,0),$B$1:$E$3,3),0) -> 0 | K21: =D21 ->  | L21: =IFERROR(HLOOKUP(((K21-K20)/12),$B$2:$E$3,2),0) -> 0 | M21: 0
A23: with growth, no attrition | H23: with growth, no attrition
C25: bonus using | E25: bonus using | J25: bonus using | L25: bonus using
A26: Year | B26: P&C units | C26: P&C units | D26: life sales | E26: life sales | F26: HRB | H26: Year | I26: P&C units | J26: P&C units | K26: life sales | L26: life sales | M26: HRB
A27: 1 | B27: =B11*12 ->  | C27: =IFERROR(HLOOKUP((B27/12),$B$1:$E$3,3),0) -> 0 | D27: =D11*12 ->  | E27: =IFERROR(HLOOKUP((D27/12),$B$2:$E$3,2),0) -> 0 | F27: =MIN(C27,E27) -> 0 | H27: 1 | I27: =B27 ->  | J27: =IFERROR(HLOOKUP((I27/12)+ROUNDDOWN((K27/12)/200,0),$B$1:$E$3,3),0) -> 0 | K27: =D27 ->  | L27: =IFERROR(HLOOKUP((K27/12),$B$2:$E$3,2),0) -> 0 | M27: =MIN(J27,L27) -> 0
A28: 2 | B28: =ROUNDUP(B27*(1+(1+#REF!)),0) ->  | C28: =IFERROR(HLOOKUP(((B28-B27)/12),$B$1:$E$3,3),0) -> 0 | D28: =ROUNDUP(D27*(1+(1+#REF!)),0) ->  | E28: =IFERROR(HLOOKUP(((D28-D27)/12),$B$2:$E$3,2),0) -> 0 | F28: 0 | H28: 2 | I28: =B28 ->  | J28: =IFERROR(HLOOKUP(((I28-I27)/12)+ROUNDDOWN(((K28-K27)/12)/200,0),$B$1:$E$3,3),0) -> 0 | K28: =D28 ->  | L28: =IFERROR(HLOOKUP(((K28-K27)/12),$B$2:$E$3,2),0) -> 0 | M28: 0
A29: 3 | B29: =ROUNDUP(B27*(1+(1+#REF!)+(1+#REF!)^2),0) ->  | C29: =IFERROR(HLOOKUP(((B29-B28)/12),$B$1:$E$3,3),0) -> 0 | D29: =ROUNDUP(D27*(1+(1+#REF!)+(1+#REF!)^2),0) ->  | E29: =IFERROR(HLOOKUP(((D29-D28)/12),$B$2:$E$3,2),0) -> 0 | F29: 0 | H29: 3 | I29: =B29 ->  | J29: =IFERROR(HLOOKUP(((I29-I28)/12)+ROUNDDOWN(((K29-K28)/12)/200,0),$B$1:$E$3,3),0) -> 0 | K29: =D29 ->  | L29: =IFERROR(HLOOKUP(((K29-K28)/12),$B$2:$E$3,2),0) -> 0 | M29: 0
A31: with growth, with attrition | H31: with growth, with attrition
C33: bonus using | E33: bonus using | J33: bonus using | L33: bonus using
A34: Year | B34: P&C units | C34: P&C units | D34: life sales | E34: life sales | F34: HRB | H34: Year | I34: P&C units | J34: P&C units | K34: life sales | L34: life sales | M34: HRB
A35: 1 | B35: =B11*12 ->  | C35: =IFERROR(HLOOKUP((B35/12),$B$1:$E$3,3),0) -> 0 | D35: =D11*12 ->  | E35: =IFERROR(HLOOKUP((D35/12),$B$2:$E$3,2),0) -> 0 | F35: =MIN(C35,E35) -> 0 | H35: 1 | I35: =B35 ->  | J35: =IFERROR(HLOOKUP((I35/12)+ROUNDDOWN((K35/12)/200,0),$B$1:$E$3,3),0) -> 0 | K35: =D35 ->  | L35: =IFERROR(HLOOKUP((K35/12),$B$2:$E$3,2),0) -> 0 | M35: =MIN(J35,L35) -> 0
A36: 2 | B36: =ROUNDUP(B35*((1-#REF!)+(1+#REF!)),0) ->  | C36: =IFERROR(HLOOKUP(((B36-B35)/12),$B$1:$E$3,3),0) -> 0 | D36: =ROUNDUP(D35*((1-#REF!)+(1+#REF!)),0) ->  | E36: =IFERROR(HLOOKUP(((D36-D35)/12),$B$2:$E$3,2),0) -> 0 | F36: 0 | H36: 2 | I36: =B36 ->  | J36: =IFERROR(HLOOKUP(((I36-I35)/12)+ROUNDDOWN(((K36-K35)/12)/200,0),$B$1:$E$3,3),0) -> 0 | K36: =D36 ->  | L36: =IFERROR(HLOOKUP(((K36-K35)/12),$B$2:$E$3,2),0) -> 0 | M36: 0
A37: 3 | B37: =ROUNDUP(B35*((1-#REF!)+(1+#REF!)*(1-#REF!)+(1+#REF!)^2),0) ->  | C37: =IFERROR(HLOOKUP(((B37-B36)/12),$B$1:$E$3,3),0) -> 0 | D37: =ROUNDUP(D35*((1-#REF!)+(1+#REF!)*(1-#REF!)+(1+#REF!)^2),0) ->  | E37: =IFERROR(HLOOKUP(((D37-D36)/12),$B$2:$E$3,2),0) -> 0 | F37: 0 | H37: 3 | I37: =B37 ->  | J37: =IFERROR(HLOOKUP(((I37-I36)/12)+ROUNDDOWN(((K37-K36)/12)/200,0),$B$1:$E$3,3),0) -> 0 | K37: =D37 ->  | L37: =IFERROR(HLOOKUP(((K37-K36)/12),$B$2:$E$3,2),0) -> 0 | M37: 0
A42: Year | B42: Base | C42: HRB | D42: Life | E42: Total
A43: 1 | B43: =B11*12*#REF! ->  | C43: =MAX(F11,M11)*12 -> 0 | D43: =#REF!*#REF!*Bonus!D11*12 ->  | E43: =SUM(B43:D43) -> 
A44: 2 | B44: =B12*12*#REF! ->  | C44: =MAX(F12,M12)*12 -> 0 | D44: =#REF!*#REF!*Bonus!D12*12 ->  | E44: =SUM(B44:D44) -> 
A45: 3 | B45: =B13*12*#REF! ->  | C45: =MAX(F13,M13)*12 -> 0 | D45: =#REF!*#REF!*Bonus!D13*12 ->  | E45: =SUM(B45:D45) -> 
A47: Year | B47: Base | C47: HRB | D47: Life | E47: Total
A48: 1 | B48: =B19*#REF! ->  | C48: =MAX(F19,M19)*12 -> 0 | D48: =#REF!*#REF!*Bonus!D19 ->  | E48: =SUM(B48:D48) -> 
A49: 2 | B49: =B20*#REF! ->  | C49: =C48+MAX(F20,M20)*12 -> 0 | D49: =#REF!*#REF!*Bonus!D20 ->  | E49: =SUM(B49:D49) -> 
A50: 3 | B50: =B21*#REF! ->  | C50: =C49+MAX(F21,M21)*12 -> 0 | D50: =#REF!*#REF!*Bonus!D21 ->  | E50: =SUM(B50:D50) -> 
A52: Year | B52: Base | C52: HRB | D52: Life | E52: Total
A53: 1 | B53: =B27*#REF! ->  | C53: =MAX(F27,M27)*12 -> 0 | D53: =#REF!*#REF!*Bonus!D27 ->  | E53: =SUM(B53:D53) -> 
A54: 2 | B54: =B28*#REF! ->  | C54: =C53+MAX(F28,M28)*12 -> 0 | D54: =#REF!*#REF!*Bonus!D28 ->  | E54: =SUM(B54:D54) -> 
A55: 3 | B55: =B29*#REF! ->  | C55: =C54+MAX(F29,M29)*12 -> 0 | D55: =#REF!*#REF!*Bonus!D29 ->  | E55: =SUM(B55:D55) -> 
A57: Year | B57: Base | C57: HRB | D57: Life | E57: Total
A58: 1 | B58: =B35*#REF! ->  | C58: =MAX(F35,M35)*12 -> 0 | D58: =#REF!*#REF!*Bonus!D35 ->  | E58: =SUM(B58:D58) -> 
A59: 2 | B59: =B36*#REF! ->  | C59: =C58+MAX(F36,M36)*12 -> 0 | D59: =#REF!*#REF!*Bonus!D36 ->  | E59: =SUM(B59:D59) -> 
A60: 3 | B60: =B37*#REF! ->  | C60: =C59+MAX(F37,M37)*12 -> 0 | D60: =#REF!*#REF!*Bonus!D37 ->  | E60: =SUM(B60:D60) -> 

Sheet MacroDefaults (hidden)
A1: Name: | B1: Mr./ Mrs. Agent
A2: Agent Type: | B2: AAA

Sheet Sheet1
